2CCN - Level 2 Cost Centre Name,,9CCN - Level 9 Cost Centre Name,9CCC - Level 9 Cost Centre Code,9AN - Level 9 Account Name,9AC - Level 9 Account Code,Transaction Description,Date Paid,Transaction Reference,Analysed Amount,2AC - Level 2 Account Codes,Supplier Name,Supplier Code
Gloucester City Council,23UE,Tic Rovercard Sales,LT101,Materials For Sale,5080,tickets sold on commission,01/04/2016,416729,2725.7,NET,Stagecoach Services Ltd,56554W
Gloucester City Council,23UE,Tic Rovercard Sales,LT101,Sale Of Goods And Services,9230,tickets sold on commission,01/04/2016,416729,-227.14,NET,Stagecoach Services Ltd,56554W
Gloucester City Council,23UE,Business Grants,GY007,Contract Payments,20,Grant,04/04/2016,415943,1000,CAP,Mr Y Hansrod T/A Ace Alterations & Sewing,16388M
Gloucester City Council,23UE,Business Transformation & Tech,RT700,Computer Hardware <5000,5420,"usb mouse, 17"" monitor",04/04/2016,416566,745.9,NET,Dell Computers Corporation Ltd,55920C
Gloucester City Council,23UE,Business Transformation & Tech,RT700,Computer Software Maintenance,5427,annual hosing Apr16-Mar17,04/04/2016,416656,2742.96,NET,Due North Ltd,12447L
Gloucester City Council,23UE,Business Transformation & Tech,RT700,Computer Software Maintenance,5427,APR16-MAR17 maintenance,04/04/2016,416746,18575,NET,Indigo Telecom Group Ltd,09159V
Gloucester City Council,23UE,Business Transformation & Tech,RT700,Licences,5703,Annual Software Licence Fee,04/04/2016,415844,2500,NET,Northgate Public Services Uk Ltd,08982S
Gloucester City Council,23UE,City Centre Cctv System,PY275,Contract Payments,20,FEES RE 37 WESTGATE ST,04/04/2016,416884,250,CAP,Michelle Grundy Ltd,16800D
Gloucester City Council,23UE,Development Management,PT200,Advertising And Publicity,5702,adverts 24MAR16,04/04/2016,416564,175.3,NET,Local World Ltd,08556P
Gloucester City Council,23UE,Docks Complex - Services,RB100,Catering Provisions -Food,5110,COFFEE,04/04/2016,416881,147.63,NET,Ethical Addictions Ltd,11654N
Gloucester City Council,23UE,Docks Complex - Services,RB100,Catering Provisions -Food,5110,FOOD,04/04/2016,416903,21.57,NET,Janes Pantry,24500W
Gloucester City Council,23UE,Docks Complex - Services,RB100,Catering Provisions -Food,5110,FOOD,04/04/2016,416906,170.31,NET,Bidvest Foodservice (3663),55585U
Gloucester City Council,23UE,Docks Complex - Services,RB100,Catering Provisions -Food,5110,FOOD,04/04/2016,416907,198.48,NET,Bidvest Foodservice (3663),55585U
Gloucester City Council,23UE,Docks Complex - Services,RB100,Catering Provisions -Food,5110,FOOD,04/04/2016,416923,9.31,NET,Janes Pantry,24500W
Gloucester City Council,23UE,Docks Complex - Services,RB100,Catering Provisions -Food,5110,FOOD,04/04/2016,416926,12.81,NET,Janes Pantry,24500W
Gloucester City Council,23UE,Docks Complex - Services,RB100,Catering Provisions -Food,5110,FOOD,04/04/2016,416927,14.66,NET,Janes Pantry,24500W
Gloucester City Council,23UE,Docks Complex - Services,RB100,Catering Provisions -Food,5110,FOOD,04/04/2016,416928,14.36,NET,Janes Pantry,24500W
Gloucester City Council,23UE,Docks Complex - Services,RB100,Catering Provisions -Food,5110,FOOD,04/04/2016,416929,7.28,NET,Janes Pantry,24500W
Gloucester City Council,23UE,Docks Complex - Services,RB100,Catering Provisions -Food,5110,FOOD,04/04/2016,416930,7.53,NET,Janes Pantry,24500W
Gloucester City Council,23UE,Docks Complex - Services,RB100,Catering Provisions -Food,5110,FOOD,04/04/2016,416931,14.66,NET,Janes Pantry,24500W
Gloucester City Council,23UE,Docks Complex - Services,RB100,Catering Provisions -Food,5110,FOOD,04/04/2016,416932,14.66,NET,Janes Pantry,24500W
Gloucester City Council,23UE,Docks Complex - Services,RB100,Catering Provisions -Food,5110,FOOD,04/04/2016,416933,7.52,NET,Janes Pantry,24500W
Gloucester City Council,23UE,Docks Complex - Services,RB100,Catering Provisions -Food,5110,FOOD,04/04/2016,416934,15.98,NET,Janes Pantry,24500W
Gloucester City Council,23UE,Docks Complex - Services,RB100,Catering Provisions -Food,5110,FOOD,04/04/2016,416935,18.05,NET,Janes Pantry,24500W
Gloucester City Council,23UE,Docks Complex - Services,RB100,Catering Provisions -Food,5110,FOOD,04/04/2016,416936,14.66,NET,Janes Pantry,24500W
Gloucester City Council,23UE,Docks Complex - Services,RB100,Catering Provisions -Food,5110,FOOD,04/04/2016,416937,11.48,NET,Janes Pantry,24500W
Gloucester City Council,23UE,Docks Complex - Services,RB100,Catering Provisions -Food,5110,FOOD,04/04/2016,416938,14.46,NET,Janes Pantry,24500W
Gloucester City Council,23UE,Docks Complex - Services,RB100,Catering Provisions -Food,5110,FOOD,04/04/2016,416939,17.54,NET,Janes Pantry,24500W
Gloucester City Council,23UE,Docks Complex - Services,RB100,Catering Provisions -Food,5110,FOOD,04/04/2016,416940,12.02,NET,Janes Pantry,24500W
Gloucester City Council,23UE,Docks Complex - Services,RB100,Catering Provisions -Food,5110,FOOD,04/04/2016,416941,13.7,NET,Janes Pantry,24500W
Gloucester City Council,23UE,Docks Complex - Services,RB100,Catering Provisions -Food,5110,FOOD,04/04/2016,416942,15.91,NET,Janes Pantry,24500W
Gloucester City Council,23UE,Docks Complex - Services,RB100,Catering Provisions -Food,5110,FOOD,04/04/2016,416943,14.66,NET,Janes Pantry,24500W
Gloucester City Council,23UE,Docks Complex - Services,RB100,Catering Provisions -Food,5110,FOOD,04/04/2016,416944,8.27,NET,Janes Pantry,24500W
Gloucester City Council,23UE,Docks Complex - Services,RB100,Catering Provisions -Food,5110,FOOD,04/04/2016,416948,21.91,NET,Total Produce Gloucester,12645E
Gloucester City Council,23UE,Docks Complex - Services,RB100,Catering Provisions -Food,5110,FOOD,04/04/2016,416949,31.57,NET,Total Produce Gloucester,12645E
Gloucester City Council,23UE,Docks Complex - Services,RB100,Catering Provisions -Food,5110,FOOD,04/04/2016,416950,73.59,NET,Total Produce Gloucester,12645E
Gloucester City Council,23UE,Docks Complex - Services,RB100,Catering Provisions -Food,5110,FOOD,04/04/2016,416951,29.81,NET,Total Produce Gloucester,12645E
Gloucester City Council,23UE,Docks Complex - Services,RB100,Catering Provisions -Food,5110,FOOD,04/04/2016,416952,8.64,NET,Total Produce Gloucester,12645E
Gloucester City Council,23UE,Docks Complex - Services,RB100,Catering Provisions -Food,5110,FOOD,04/04/2016,416953,39.66,NET,Total Produce Gloucester,12645E
Gloucester City Council,23UE,Docks Complex - Services,RB100,Catering Provisions -Food,5110,FOOD,04/04/2016,416954,27.23,NET,Total Produce Gloucester,12645E
Gloucester City Council,23UE,Docks Complex - Services,RB100,Catering Provisions -Food,5110,FOOD,04/04/2016,416956,54.36,NET,Total Produce Gloucester,12645E
Gloucester City Council,23UE,Docks Complex - Services,RB100,Catering Provisions -Food,5110,FOOD,04/04/2016,416957,49.42,NET,Total Produce Gloucester,12645E
Gloucester City Council,23UE,Docks Complex - Services,RB100,Catering Provisions -Food,5110,FOOD,04/04/2016,416959,42.59,NET,Total Produce Gloucester,12645E
Gloucester City Council,23UE,Docks Complex - Services,RB100,Catering Provisions -Food,5110,FOOD,04/04/2016,416960,31.89,NET,Total Produce Gloucester,12645E
Gloucester City Council,23UE,Docks Complex - Services,RB100,Catering Provisions -Food,5110,FOOD,04/04/2016,416961,12.94,NET,Total Produce Gloucester,12645E
Gloucester City Council,23UE,Docks Complex - Services,RB100,Catering Provisions -Food,5110,FOOD,04/04/2016,416962,24.36,NET,Total Produce Gloucester,12645E
Gloucester City Council,23UE,Docks Complex - Services,RB100,Catering Provisions -Food,5110,FOOD,04/04/2016,416963,26.62,NET,Total Produce Gloucester,12645E
Gloucester City Council,23UE,Docks Complex - Services,RB100,Catering Provisions -Food,5110,FOOD,04/04/2016,416964,63.23,NET,Total Produce Gloucester,12645E
Gloucester City Council,23UE,Docks Complex - Services,RB100,Catering Provisions -Food,5110,FOOD,04/04/2016,416965,38.95,NET,Total Produce Gloucester,12645E
Gloucester City Council,23UE,Docks Complex - Services,RB100,Catering Provisions -Food,5110,MILK,04/04/2016,416905,16.28,NET,Total Produce Gloucester,12645E
Gloucester City Council,23UE,Docks Complex - Services,RB100,Catering Provisions -Food,5110,MILK,04/04/2016,416955,8.64,NET,Total Produce Gloucester,12645E
Gloucester City Council,23UE,Docks Complex - Services,RB100,Catering Provisions -Food,5110,MILK,04/04/2016,416958,12.36,NET,Total Produce Gloucester,12645E
Gloucester City Council,23UE,Docks Complex - Services,RB100,Hire Of Equipment,5020,1st Annual Rental,04/04/2016,415849,220,NET,Cooleraid Ltd,16405P
Gloucester City Council,23UE,Docks Complex - Services,RB100,Hire Of Equipment,5020,Annual Rental,04/04/2016,415933,110,NET,Cooleraid Ltd,16405P
Gloucester City Council,23UE,Docks Complex - Services,RB100,Hire Of Equipment,5020,Lease rental Melodia,04/04/2016,416328,162.57,NET,Siemens Financial Services Ltd,08349H
Gloucester City Council,23UE,Docks Complex - Services,RB100,Recycling,3631,GUILDHALL RECYCLING,04/04/2016,415499,70.3,NET,Printwaste Recycling,57114W
Gloucester City Council,23UE,Docks Complex - Services,RB100,Trade Refuse Collection,3630,BLACKFRIARS RECYCLING,04/04/2016,415498,20.5,NET,Printwaste Recycling,57114W
Gloucester City Council,23UE,REDACTED,REDACTED,REDACTED,REDACTED,REDACTED,04/04/2016,REDACTED,391.5,NET,REDACTED,REDACTED
Gloucester City Council,23UE,Grants To Voluntary Sector,FG100,Members Allocation Fund,7100F,MEMBERS ALLOCATION FUND GRANT,04/04/2016,416879,500,NET,Kingfisher Church,11764E
Gloucester City Council,23UE,Guildhall Bar And Caf�,LA210,Catering Provisions -Food,5110,food,04/04/2016,416865,92.12,NET,Woodward Foodservice,10714F
Gloucester City Council,23UE,Guildhall Bar And Caf�,LA210,Catering Provisions -Food,5110,food,04/04/2016,416866,97.04,NET,Woodward Foodservice,10714F
Gloucester City Council,23UE,Guildhall Bar And Caf�,LA210,Catering Provisions -Food,5110,food,04/04/2016,416867,155.92,NET,Woodward Foodservice,10714F
Gloucester City Council,23UE,Guildhall Bar And Caf�,LA210,Catering Provisions -Liquor,5111,DRINKS,04/04/2016,416908,924.22,NET,Cellar Supplies Cheltenham Ltd,01563L
Gloucester City Council,23UE,Guildhall Bar And Caf�,LA210,Catering Provisions -Liquor,5111,DRINKS,04/04/2016,416909,745.87,NET,Cellar Supplies Cheltenham Ltd,01563L
Gloucester City Council,23UE,Guildhall Bar And Caf�,LA210,Catering Provisions -Liquor,5111,DRINKS,04/04/2016,416910,984.65,NET,Cellar Supplies Cheltenham Ltd,01563L
Gloucester City Council,23UE,Guildhall Bar And Caf�,LA210,Catering Provisions -Liquor,5111,DRINKS,04/04/2016,416911,1374.34,NET,Cellar Supplies Cheltenham Ltd,01563L
Gloucester City Council,23UE,Guildhall Events,LA200,Advertising And Publicity,5702,ADVERT 26/3/16,04/04/2016,416876,500.02,NET,Local World Ltd,08556P
Gloucester City Council,23UE,Guildhall Events,LA200,Contents Insurance,5700,ADVERTS,04/04/2016,416880,2800,NET,Cds Publications,59644P
Gloucester City Council,23UE,Hackney Carriages,HL100,Fees For Services Received,5350,Visit 11/06/2015,04/04/2016,404581,450,NET,Roadmark Ltd,37743T
Gloucester City Council,23UE,Homelessness,CH120,Basic Pay - Temporary Staff,2751,TEMPORARY STAFF,04/04/2016,416902,521.28,NET,James Andrews Recruitment Solutions,13636W
Gloucester City Council,23UE,Homelessness,CH120,Fees For Services Received,5350,MEDICAL REPORT,04/04/2016,416885,20.5,NET,Gloucester City Health Centre,02093U
Gloucester City Council,23UE,REDACTED,REDACTED,REDACTED,REDACTED,REDACTED,04/04/2016,REDACTED,30,NET,REDACTED,REDACTED
Gloucester City Council,23UE,REDACTED,REDACTED,REDACTED,REDACTED,REDACTED,04/04/2016,REDACTED,588.52,NET,REDACTED,REDACTED
Gloucester City Council,23UE,Interest Payable,VR100,Bae Systems Pension Fund,7822,HALF YEARLY INTEREST ON BAE LOAN,04/04/2016,416969,69314.38,NET,Nortrust Nominees Ltd,15996R
Gloucester City Council,23UE,Interest Payable,VR100,Bae Systems Pension Fund,7822,HALF YEARLY INTEREST ON BAE LOAN,04/04/2016,416970,29706.16,NET,Nortrust Nominees Ltd,15996R
Gloucester City Council,23UE,Internal Communications,RC430,Events,5952,16/17 EVENT PROGRAMME Q1,04/04/2016,416914,40000,NET,Marketing Gloucester Ltd,08925E
Gloucester City Council,23UE,Marketing Gloucester Charges,RC433,Contracted Services,6970,GRANT FUNDING APR-JUN 2016,04/04/2016,416915,43662.5,NET,Marketing Gloucester Ltd,08925E
Gloucester City Council,23UE,Marketing Gloucester Charges,RC433,Contracted Services,6970,STAFF FUNDING APR-JUN 2016,04/04/2016,416916,14912.25,NET,Marketing Gloucester Ltd,08925E
Gloucester City Council,23UE,Parks Contract Management,LP100,Maint Of Grounds - General,3030,PLAY AREA EQUIPMENT,04/04/2016,416882,1562,NET,Hags-Smp Ltd,00672P
Gloucester City Council,23UE,Parks Contract Management,LP100,Maint Of Grounds - General,3030,PLAY AREA REPAIRS,04/04/2016,416888,2460,NET,Greenfields Garden Services Ltd,48130G
Gloucester City Council,23UE,Parks Contract Management,LP100,Maint Of Grounds - General,3030,PLAY AREA REPAIRS,04/04/2016,416889,1727,NET,Greenfields Garden Services Ltd,48130G
Gloucester City Council,23UE,Parks Contract Management,LP100,Maint Of Grounds - General,3030,PLAY AREA REPAIRS,04/04/2016,416890,3206,NET,Greenfields Garden Services Ltd,48130G
Gloucester City Council,23UE,Rehousing,CH111,Fees For Services Received,5350,MEDICAL REPORT,04/04/2016,416886,20.5,NET,Gloucester City Health Centre,02093U
Gloucester City Council,23UE,Rehousing,CH111,Fees For Services Received,5350,MEDICAL REPORT,04/04/2016,416887,20.5,NET,Rosebank Health,03041E
Gloucester City Council,23UE,Rehousing,CH111,Fees For Services Received,5350,MEDICAL REPORT,04/04/2016,416966,20.5,NET,New Court Surgery,16242U
Gloucester City Council,23UE,Solace Project,FP843,Other Minor Supplies Services,5590,MAR16 ASB SALARY,04/04/2016,416913,3250,NET,Gloucester City Homes,05244T
Gloucester City Council,23UE,Taxi Marshalling Scheme,HL101,Taxi Marshals,5387,TAXI MARSHALLS,04/04/2016,416893,172.5,NET,Cuff Facilities Ltd,16436C
Gloucester City Council,23UE,Taxi Marshalling Scheme,HL101,Taxi Marshals,5387,TAXI MARSHALLS,04/04/2016,416894,172.5,NET,Cuff Facilities Ltd,16436C
Gloucester City Council,23UE,Taxi Marshalling Scheme,HL101,Taxi Marshals,5387,TAXI MARSHALLS,04/04/2016,416895,138,NET,Cuff Facilities Ltd,16436C
Gloucester City Council,23UE,Taxi Marshalling Scheme,HL101,Taxi Marshals,5387,TAXI MARSHALLS,04/04/2016,416896,74.75,NET,Cuff Facilities Ltd,16436C
Gloucester City Council,23UE,Taxi Marshalling Scheme,HL101,Taxi Marshals,5387,TAXI MARSHALLS,04/04/2016,416897,172.5,NET,Cuff Facilities Ltd,16436C
Gloucester City Council,23UE,Taxi Marshalling Scheme,HL101,Taxi Marshals,5387,TAXI MARSHALLS,04/04/2016,416898,172.5,NET,Cuff Facilities Ltd,16436C
Gloucester City Council,23UE,Taxi Marshalling Scheme,HL101,Taxi Marshals,5387,TAXI MARSHALLS,04/04/2016,416899,172.5,NET,Cuff Facilities Ltd,16436C
Gloucester City Council,23UE,Taxi Marshalling Scheme,HL101,Taxi Marshals,5387,TAXI MARSHALLS,04/04/2016,416900,172.5,NET,Cuff Facilities Ltd,16436C
Gloucester City Council,23UE,Taxi Marshalling Scheme,HL101,Taxi Marshals,5387,TAXI MARSHALLS,04/04/2016,416901,172.5,NET,Cuff Facilities Ltd,16436C
Gloucester City Council,23UE,The Arbor,HC501,Catering Provisions -Food,5110,food,04/04/2016,416864,104.36,NET,Bidvest Foodservice (3663),55585U
Gloucester City Council,23UE,The Arbor,HC501,Catering Provisions -Food,5110,FOOD,04/04/2016,416604,111.87,NET,Bidvest Foodservice (3663),55585U
Gloucester City Council,23UE,The Arbor,HC501,Catering Provisions -Food,5110,FOOD,04/04/2016,416605,130,NET,Bidvest Foodservice (3663),55585U
Gloucester City Council,23UE,The Arbor,HC501,Catering Provisions -Food,5110,FOOD,04/04/2016,416606,381.42,NET,Bidvest Foodservice (3663),55585U
Gloucester City Council,23UE,The Arbor,HC501,Catering Provisions -Food,5110,FOOD,04/04/2016,416607,178.9,NET,Bidvest Foodservice (3663),55585U
Gloucester City Council,23UE,The Arbor,HC501,Catering Provisions -Food,5110,FOOD,04/04/2016,416608,210.94,NET,Bidvest Foodservice (3663),55585U
Gloucester City Council,23UE,The Arbor,HC501,Catering Provisions -Food,5110,FOOD,04/04/2016,416609,377.15,NET,Bidvest Foodservice (3663),55585U
Gloucester City Council,23UE,The Arbor,HC501,Catering Provisions -Food,5110,FOOD,04/04/2016,416904,50.6,NET,Total Produce Gloucester,12645E
Gloucester City Council,23UE,The Arbor,HC501,Catering Provisions -Food,5110,FOOD,04/04/2016,416924,66.1,NET,Total Produce Gloucester,12645E
Gloucester City Council,23UE,The Arbor,HC501,Catering Provisions -Food,5110,FOOD,04/04/2016,416946,4.03,NET,Total Produce Gloucester,12645E
Gloucester City Council,23UE,The Arbor,HC501,Catering Provisions -Food,5110,MILK,04/04/2016,416947,4.76,NET,Total Produce Gloucester,12645E
Gloucester City Council,23UE,The Arbor,HC501,Catering Provisions -Food,5110,MILK & FOOD,04/04/2016,416945,25.47,NET,Total Produce Gloucester,12645E
Gloucester City Council,23UE,Tourism Marketing,LT100,Other Minor Supplies Services,5590,SERVICE SECURITY SYSTEM,04/04/2016,416878,55,NET,Eke Security Ltd,11519W
Gloucester City Council,23UE,Tourism Marketing,LT100,Window Cleaning,3610,WINDOW CLEANING 28/1/16,04/04/2016,416873,42.93,NET,Interserve Fs (Uk) Limited,00442K
Gloucester City Council,23UE,Tourism Marketing,LT100,Window Cleaning,3610,WINDOW CLEANING JAN-FEB16,04/04/2016,416872,24,NET,Interserve Fs (Uk) Limited,00442K
Gloucester City Council,23UE,Airport Land,RO400,Fees For Services Received,5350,Professional Charges,05/04/2016,416514,3000,NET,Pinsent Masons Llp,15744X
Gloucester City Council,23UE,Cemeteries,HC300,Oper Leases - Equipment,5029,VEHICLE LEASE RENTAL 2016-17,05/04/2016,416874,2436.04,NET,Chrystal Consulting,03429X
Gloucester City Council,23UE,Cemeteries,HC300,Oper. Leases -Vehs/M. Plant,4054,INSURANCE SETTLEMENT,05/04/2016,416875,5250,NET,Chrystal Consulting,03429X
Gloucester City Council,23UE,Cemeteries,HC300,Oper. Leases -Vehs/M. Plant,4054,VEHICLE LEASE RENTAL 2016-17,05/04/2016,416874,4418.6,NET,Chrystal Consulting,03429X
Gloucester City Council,23UE,Cemeteries,HC300,Repair/Maint Of Monuments,3004,Fibres,05/04/2016,416550,455.82,NET,Easy Mix Ltd,01403L
Gloucester City Council,23UE,Client Revs & Bens Contract,RT240,Bailiffs Fees,5368,VAT due on statutory fees,05/04/2016,416557,0,NET,Bristow & Sutor,05450M
Gloucester City Council,23UE,Client Revs & Bens Contract,RT240,Bailiffs Fees,5368,VAT on fees collected,05/04/2016,416536,0,NET,Phoenix Commercial Collections Ltd,13435J
Gloucester City Council,23UE,Client Revs & Bens Contract,RT240,Bailiffs Fees,5368,VAT on fees collected,05/04/2016,416571,0,NET,Phoenix Commercial Collections Ltd,13435J
Gloucester City Council,23UE,Client Revs & Bens Contract,RT240,Bailiffs Fees,5368,VAT on statutory fees,05/04/2016,416537,2.47,NET,Bristow & Sutor,05450M
Gloucester City Council,23UE,REDACTED,REDACTED,REDACTED,REDACTED,REDACTED,05/04/2016,REDACTED,150,NET,REDACTED,REDACTED
Gloucester City Council,23UE,Contact Centre,RB300,Oper. Leases -Vehs/M. Plant,4054,VEHICLE LEASE RENTAL 2016-17,05/04/2016,416874,590.97,NET,Chrystal Consulting,03429X
Gloucester City Council,23UE,Countryside Unit,LP201,Contract Cleaning,3620,Cleaning Rangers Office,05/04/2016,416582,130,NET,Cv Fisher Cleaning Services,14907C
Gloucester City Council,23UE,Docks Complex - Services,RB100,Catering Provisions -Food,5110,BUFFET MENU,05/04/2016,416922,39.6,NET,Janes Pantry,24500W
Gloucester City Council,23UE,Docks Complex - Services,RB100,Hire Of Equipment,5020,Plastic Cups,05/04/2016,415851,100,NET,Cooleraid Ltd,16405P
Gloucester City Council,23UE,Docks Complex - Services,RB100,Lift Maintenance,3051,The Docks Inspection,05/04/2016,415078,373.75,NET,Pickerings Europe Ltd,58816U
Gloucester City Council,23UE,Economic Development,FP300,Business Grant,7116,Broadband vouchers,05/04/2016,416974,9000,NET,Airband Community Internet Ltd,16403U
Gloucester City Council,23UE,Economic Development,FP300,Business Grant,7116,Broadband vouchers,05/04/2016,416975,18000,NET,Airband Community Internet Ltd,16403U
Gloucester City Council,23UE,Financial Services,RT200,Subscriptions,5600,TISonline subscription APR16-MAR17,05/04/2016,415405,2680,NET,Cipfa Business Limited,09260F
Gloucester City Council,23UE,REDACTED,REDACTED,REDACTED,REDACTED,REDACTED,05/04/2016,REDACTED,200,NET,REDACTED,REDACTED
Gloucester City Council,23UE,Gloucester Partnership,FP106,Other Minor Supplies Services,5590,LIRF Course,05/04/2016,416515,150,NET,England Athletics,15020A
Gloucester City Council,23UE,Group Mgr Cult Ser & Tourism,GR102,Consultants Fees,5349,SW MUSEUM DEVT SERVICES 2015-16,05/04/2016,416870,3000,NET,Bristol City Council,16392X
Gloucester City Council,23UE,REDACTED,REDACTED,REDACTED,REDACTED,REDACTED,05/04/2016,REDACTED,3535.75,NET,REDACTED,REDACTED
Gloucester City Council,23UE,Homelessness Prevention,CH122,Fees For Services Received,5350,Housing Deposit,05/04/2016,417015,30,NET,Acorn Residential Lettings,16600P
Gloucester City Council,23UE,REDACTED,REDACTED,REDACTED,REDACTED,REDACTED,05/04/2016,REDACTED,300,NET,REDACTED,REDACTED
Gloucester City Council,23UE,REDACTED,REDACTED,REDACTED,REDACTED,REDACTED,05/04/2016,REDACTED,300,NET,REDACTED,REDACTED
Gloucester City Council,23UE,Investment Property,RB500,Lift Maintenance,3051,Blackfriars Inspection,05/04/2016,415077,138.25,NET,Pickerings Europe Ltd,58816U
Gloucester City Council,23UE,Investment Property,RB500,Lift Maintenance,3051,City Museum Inspection,05/04/2016,415075,153.25,NET,Pickerings Europe Ltd,58816U
Gloucester City Council,23UE,Investment Property,RB500,Lift Maintenance,3051,Eastgate Market Inspection,05/04/2016,415080,242.5,NET,Pickerings Europe Ltd,58816U
Gloucester City Council,23UE,Investment Property,RB500,Lift Maintenance,3051,Folk Museum Inspection,05/04/2016,414963,106.25,NET,Pickerings Europe Ltd,58816U
Gloucester City Council,23UE,Investment Property,RB500,Lift Maintenance,3051,GL1 Inspection,05/04/2016,415076,242.5,NET,Pickerings Europe Ltd,58816U
Gloucester City Council,23UE,Investment Property,RB500,Lift Maintenance,3051,Guildhall Inspection,05/04/2016,415079,311.5,NET,Pickerings Europe Ltd,58816U
Gloucester City Council,23UE,Kings Quarter,RY146,Contract Payments,20,Diversionary Works,05/04/2016,416577,25191.25,CAP,Western Power Distribution,12791S
Gloucester City Council,23UE,Legal Services,RS200,Fees For Services Received,5350,One Legal Costs Incurred,05/04/2016,416569,2984.48,NET,Tewkesbury Borough Council,43800C
Gloucester City Council,23UE,Off Street Car Parks,PP110,Computer Software Maintenance,5427,Third Party Charges,05/04/2016,415992,3237.86,NET,Chipside Ltd,06535T
Gloucester City Council,23UE,Robinswoodhill Trading Account,LP203,Routine R And M - Vehicles,4011,battery charger & antifreeze,05/04/2016,416752,87.48,NET,Halfords Ltd,56192J
Gloucester City Council,23UE,The Arbor,HC501,Other Minor Supplies Services,5590,kitchen equipment,05/04/2016,415404,237.82,NET,Nisbets,55372P
Gloucester City Council,23UE,Utilities,PT502,Electricity Supply,3110,Electric & Gas Feb 16,05/04/2016,415073,611.9,NET,West Mercia Energy,11669Z
Gloucester City Council,23UE,Utilities,PT502,Gas Supply,3100,Electric & Gas Feb 16,05/04/2016,415073,22816.88,NET,West Mercia Energy,11669Z
Gloucester City Council,23UE,Vehicles,RS140,Oper. Leases -Vehs/M. Plant,4054,VEHICLE LEASE RENTAL 2016-17,05/04/2016,416874,872.09,NET,Chrystal Consulting,03429X
Gloucester City Council,23UE,City Centre Cctv System,PY275,Contract Payments,20,CCTV MILESTONE 3,06/04/2016,417146,44128,CAP,Bt Redcare,04692U
Gloucester City Council,23UE,City Centre Cctv System,PY275,Contract Payments,20,Professional charges,06/04/2016,417126,450,CAP,Harrison Clark Rickerbys Solicitors,11064C
Gloucester City Council,23UE,Civica Admin Charges,RT105,Postages,5400,Post,06/04/2016,416574,1365.29,NET,Royal Mail S.Wales & South West,35830S
Gloucester City Council,23UE,Client Revs & Bens Contract,RT240,Fees For Services Received,5350,IT Costs Feb 16,06/04/2016,416194,18572.58,NET,Civica Uk Ltd,10841X
Gloucester City Council,23UE,Client Revs & Bens Contract,RT240,Fees For Services Received,5350,Tax Payment Cards Reprint,06/04/2016,416102,884.95,NET,Thames Card Technology Ltd,54199N
Gloucester City Council,23UE,Coll Fund Revenue Account,ZC100,County Council Precept,7460,precept payment April 2016,06/04/2016,417168,4168751.7,NET,Gloucestershire County Council,18650D
Gloucester City Council,23UE,Coll Fund Revenue Account,ZC100,Police Precept,7461,precept payment April 2016,06/04/2016,417169,773478.2,NET,"Police & Crime Commissioner, Gloucestershire",49521B
Gloucester City Council,23UE,Crematorium,HC200,Fees For Services Received,5350,Crem Fees March 2016,06/04/2016,417053,607.6,NET,Dr R W Bell,01571P
Gloucester City Council,23UE,Crematorium,HC200,Fees For Services Received,5350,Crem Fees March 2016,06/04/2016,417054,1877.84,NET,Dr D Martin,00890P
Gloucester City Council,23UE,Crematorium,HC200,Fees For Services Received,5350,Crem Fees March 2016,06/04/2016,417055,698.64,NET,Dr C M Stretton,00306P
Gloucester City Council,23UE,Employers Pension Contribs,ZR355,Pension Contribs Incl Backf,2901,pension deficit for March 2016 for GCC,06/04/2016,417167,217666.66,NET,Gloucestershire County Council,10614L
Gloucester City Council,23UE,Financial Services,RT200,Vocational Training,2970,Exam Fee Level 3,06/04/2016,416195,75,NET,Pitman Training Worcester,16384W
Gloucester City Council,23UE,Flood Defence Int Drain B Levy,PS111,South Glos. Drainage Board,7462,land drainage levy for 2016/17,06/04/2016,417171,29504.26,NET,Lower Severn Drainage Board,04918R
Gloucester City Council,23UE,Gloucester Guildhall,LA100,Lift Maintenance,3051,Works 01/03/2016,06/04/2016,415997,1015.04,NET,Pickerings Europe Ltd,58816U
Gloucester City Council,23UE,Guildhall Bar And Caf�,LA210,Catering Provisions -Food,5110,Milk,06/04/2016,417127,4.76,NET,Total Produce Gloucester,12645E
Gloucester City Council,23UE,Guildhall Lettings,LA400,Events Income,9202,Studio 2 - Client Sessions March 2016,06/04/2016,417052,70,NET,Gloucestershire Music Makers,13755L
Gloucester City Council,23UE,Guildhall Lettings,LA400,Sale Of Goods And Services,9230,Studio 2 - Client Sessions March 2016,06/04/2016,417052,-14,NET,Gloucestershire Music Makers,13755L
Gloucester City Council,23UE,Investment Property,RB500,General Repair/Maint Buildings,3000,FEB16 MTC CLAIMS,06/04/2016,417049,28685.61,NET,Rf Gardiner Limited,12299B
Gloucester City Council,23UE,Retail Market - Landlord,HM300,Cleaning / Domestic Equipment,5011,APR16 towel hire for Market,06/04/2016,416321,19.87,NET,Initial Washroom Solutions,06143R
Gloucester City Council,23UE,REDACTED,REDACTED,REDACTED,REDACTED,REDACTED,06/04/2016,REDACTED,59.4,NET,REDACTED,REDACTED
Gloucester City Council,23UE,REDACTED,REDACTED,REDACTED,REDACTED,REDACTED,06/04/2016,REDACTED,132,NET,REDACTED,REDACTED
Gloucester City Council,23UE,18 Commercial Road,RB540,Service Charges,3020,APR-JUN16 SERVICE CHARGE,07/04/2016,417059,3000,NET,Gloucester Quays Management Ltd,13497K
Gloucester City Council,23UE,Airport Land,RO400,Fees For Services Received,5350,Gloucestershire Airport Business Plan,07/04/2016,417078,2160,NET,Cheltenham Borough Council,04176B
Gloucester City Council,23UE,Asset Management,RS300,Basic Pay - Temporary Staff,2751,consultancy fees,07/04/2016,417076,6900,NET,Ardley Associates,09369F
Gloucester City Council,23UE,Asset Management,RS300,Basic Pay - Temporary Staff,2751,MAR16 Project Engineer Services,07/04/2016,417077,5361.1,NET,Ecostep Ltd,15511Z
Gloucester City Council,23UE,Business Transformation & Tech,RT700,Computer Software Maintenance,5427,ARCGIS & LOCALVIEW MAINTENANCE,07/04/2016,417121,13560,NET,Esri (Uk) Ltd,57836X
Gloucester City Council,23UE,City Museum And Art Gallery,LM200,Advertising And Publicity,5702,Museums branding,07/04/2016,416337,4680,NET,Third Floor Design Ltd,16420U
Gloucester City Council,23UE,Community Safety Projects,FP500,Hospitality,5122,FUNCTION ROOM HIRE 10/3/16,07/04/2016,417072,44.4,NET,Aspire Sports & Cultural Trust,08135V
Gloucester City Council,23UE,Corporate Expenses,RC110,Fees For Services Received,5350,2016 apprenticeship awards,07/04/2016,414433,4000,NET,Local World Ltd,08556P
Gloucester City Council,23UE,Docks Complex - Services,RB100,Service Charges,3020,HKP SERVICE CHARGE APR-JUN16,07/04/2016,417058,13936,NET,Gloucester Quays Management Ltd,13497K
Gloucester City Council,23UE,General Works Fund,RY203,Consultants Fees,30,"MAR16 SURVEY, DESIGN & CAD SERVICES",07/04/2016,417114,921.5,CAP,Graham Parker Environmental Design Solutions,16390B
Gloucester City Council,23UE,Guildhall Bar And Caf�,LA210,Catering Provisions -Food,5110,milk,07/04/2016,417128,4.76,NET,Total Produce Gloucester,12645E
Gloucester City Council,23UE,Guildhall Bar And Caf�,LA210,Catering Provisions -Food,5110,milk,07/04/2016,417129,4.76,NET,Total Produce Gloucester,12645E
Gloucester City Council,23UE,Guildhall Bar And Caf�,LA210,Catering Provisions -Food,5110,milk,07/04/2016,417130,4.76,NET,Total Produce Gloucester,12645E
Gloucester City Council,23UE,Guildhall Bar And Caf�,LA210,Catering Provisions -Food,5110,milk,07/04/2016,417131,4.76,NET,Total Produce Gloucester,12645E
Gloucester City Council,23UE,Guildhall Bar And Caf�,LA210,Catering Provisions -Food,5110,milk,07/04/2016,417132,4.76,NET,Total Produce Gloucester,12645E
Gloucester City Council,23UE,Guildhall Bar And Caf�,LA210,Catering Provisions -Food,5110,milk,07/04/2016,417133,4.76,NET,Total Produce Gloucester,12645E
Gloucester City Council,23UE,Guildhall Bar And Caf�,LA210,Catering Provisions -Food,5110,milk,07/04/2016,417134,4.76,NET,Total Produce Gloucester,12645E
Gloucester City Council,23UE,Guildhall Bar And Caf�,LA210,Catering Provisions -Food,5110,milk,07/04/2016,417135,4.76,NET,Total Produce Gloucester,12645E
Gloucester City Council,23UE,Guildhall Bar And Caf�,LA210,Catering Provisions -Food,5110,milk,07/04/2016,417136,4.76,NET,Total Produce Gloucester,12645E
Gloucester City Council,23UE,Guildhall Bar And Caf�,LA210,Catering Provisions -Food,5110,milk,07/04/2016,417138,4.76,NET,Total Produce Gloucester,12645E
Gloucester City Council,23UE,Guildhall Bar And Caf�,LA210,Catering Provisions -Food,5110,milk,07/04/2016,417139,4.76,NET,Total Produce Gloucester,12645E
Gloucester City Council,23UE,Guildhall Bar And Caf�,LA210,Catering Provisions -Food,5110,milk,07/04/2016,417140,4.76,NET,Total Produce Gloucester,12645E
Gloucester City Council,23UE,Guildhall Bar And Caf�,LA210,Catering Provisions -Food,5110,milk,07/04/2016,417141,4.76,NET,Total Produce Gloucester,12645E
Gloucester City Council,23UE,Guildhall Bar And Caf�,LA210,Catering Provisions -Food,5110,MILK,07/04/2016,417137,4.76,NET,Total Produce Gloucester,12645E
Gloucester City Council,23UE,Guildhall Bar And Caf�,LA210,Catering Provisions -Food,5110,MILK,07/04/2016,417142,4.76,NET,Total Produce Gloucester,12645E
Gloucester City Council,23UE,Guildhall Bar And Caf�,LA210,Catering Provisions -Liquor,5111,Gloucester Gold,07/04/2016,417074,152,NET,Gloucester Brewery,13373F
Gloucester City Council,23UE,REDACTED,REDACTED,REDACTED,REDACTED,REDACTED,07/04/2016,REDACTED,346.15,NET,REDACTED,REDACTED
Gloucester City Council,23UE,REDACTED,REDACTED,REDACTED,REDACTED,REDACTED,07/04/2016,REDACTED,375,NET,REDACTED,REDACTED
Gloucester City Council,23UE,REDACTED,REDACTED,REDACTED,REDACTED,REDACTED,07/04/2016,REDACTED,383.5,NET,REDACTED,REDACTED
Gloucester City Council,23UE,Off Street Car Parks,PP110,Rents,3200,Rent Mar - Jun 16,07/04/2016,415950,118.75,NET,Telereal Services Ltd,15121I
Gloucester City Council,23UE,Safer Stronger Communities,FP841,Other Minor Supplies Services,5590,ROOM HIRE 11/3/16,07/04/2016,417122,282.05,NET,Aspire Sports & Cultural Trust,08135V
Gloucester City Council,23UE,Cemeteries,HC300,Basic Pay - Temporary Staff,2751,temp staff w/e 20/03/2016,08/04/2016,416513,351.9,NET,Premiere Employment Group Ltd,55468Z
Gloucester City Council,23UE,Cemeteries,HC300,Basic Pay - Temporary Staff,2751,temp staff w/e 20/03/2016,08/04/2016,416512,439.88,NET,Premiere Employment Group Ltd,55468Z
Gloucester City Council,23UE,Cemeteries,HC300,Maint Of Grounds - General,3030,type 1 stone,08/04/2016,417101,265,NET,Allstone Sand & Gravel Aggregates Ltd,00940M
Gloucester City Council,23UE,Contact Centre,RB300,Operational Equipment <5000,5012,stationery,08/04/2016,417061,204.03,NET,Lyreco Uk Ltd,11746G
Gloucester City Council,23UE,Disabled Facilities Grants,CY013,Disabled Facility Grants,74,disabled facilities grant MDF5160,08/04/2016,417184,5747.18,CAP,Mears Home Improvement Ltd,00096G
Gloucester City Council,23UE,Grants To Voluntary Sector,FG100,Members Allocation Fund,7100F,grant,08/04/2016,417181,500,NET,Infobuzz Ltd,4743C
Gloucester City Council,23UE,Guildhall Bar And Caf�,LA210,Catering Provisions -Liquor,5111,fruit juice,08/04/2016,417069,85.68,NET,Bensons Fruit Juice Ltd,16170U
Gloucester City Council,23UE,Homelessness,CH120,Board And Lodging,5515,emergency accommodation costs,08/04/2016,417117,117.96,NET,West Oxfordshire District Council,16429Z
Gloucester City Council,23UE,REDACTED,REDACTED,REDACTED,REDACTED,REDACTED,08/04/2016,REDACTED,588.52,NET,REDACTED,REDACTED
Gloucester City Council,23UE,REDACTED,REDACTED,REDACTED,REDACTED,REDACTED,08/04/2016,REDACTED,600,NET,REDACTED,REDACTED
Gloucester City Council,23UE,Interest Payable,VR100,Int On Other Temp. Borrowing,7811,Interest Oct 15 -Mar 16,08/04/2016,417183,144.97,NET,John Ward Trust,49282W
Gloucester City Council,23UE,Nms Contract,HI102,Fees For Services Received,5350,support costs FEB16,08/04/2016,416561,2709.72,NET,Somerset County Council,15963G
Gloucester City Council,23UE,Off Street Car Parks,PP110,Computer Software Maintenance,5427,Cashless Parking Fees,08/04/2016,417120,791.42,NET,Chipside Ltd,06535T
Gloucester City Council,23UE,Off Street Car Parks,PP110,Computer Software Maintenance,5427,Third Party Charges,08/04/2016,417119,1493.67,NET,Chipside Ltd,06535T
Gloucester City Council,23UE,Retail Market - Landlord,HM300,Operational Equipment <5000,5012,lamps,08/04/2016,417073,71.3,NET,City Electrical Factors,09325C
Gloucester City Council,23UE,Quedgeley Pc Local Precept,ZR200,Parish Precept,7463,Precept 2016/17 & Grant Allocation,11/04/2016,417252,252263,NET,Quedgeley Parish Council,48506G
Gloucester City Council,23UE,Blackfriars Weddings,LA220,Catering Provisions -Food,5110,Cakes,12/04/2016,416215,50.8,NET,Clams Handmade Cakes,16421S
Gloucester City Council,23UE,Cemeteries,HC300,Maint Of Grounds - General,3030,35 Metres,12/04/2016,417347,9,NET,Aran Turf,56656L
Gloucester City Council,23UE,Cemeteries,HC300,Maint Of Grounds - General,3030,various plants,12/04/2016,417123,123.2,NET,Genus Plant Sourcing,14143S
Gloucester City Council,23UE,Cleansing Services Admin,HI100,Contracted Services,6970,Toilet Scheme April 2016,12/04/2016,417241,300,NET,The Warehouse Climbing Centre,11162S
Gloucester City Council,23UE,Docks Complex - Castlemeads Cp,RB210,Contracted Services,6970,GC Fixed Overhead,12/04/2016,417087,773.48,NET,Apcoa Parking (Uk) Ltd,09954M
Gloucester City Council,23UE,Economic Development,FP300,Business Grant,7116,Broadband vouchers,12/04/2016,417210,3000,NET,Pescado Ltd,16401Y
Gloucester City Council,23UE,Flooding And Drainage,HE306,Maint Of Grounds - General,3030,River Twyver clearance,12/04/2016,416517,90,NET,Rdb Safety Boat Ltd,13507J
Gloucester City Council,23UE,REDACTED,REDACTED,REDACTED,REDACTED,REDACTED,12/04/2016,REDACTED,48,NET,REDACTED,REDACTED
Gloucester City Council,23UE,Guildhall Bar And Caf�,LA210,Catering Provisions -Food,5110,Food,12/04/2016,417348,81.23,NET,Woodward Foodservice,10714F
Gloucester City Council,23UE,Guildhall Bar And Caf�,LA210,Catering Provisions -Liquor,5111,Gas needed,12/04/2016,417085,14.81,NET,Boc Ltd,59172L
Gloucester City Council,23UE,REDACTED,REDACTED,REDACTED,REDACTED,REDACTED,12/04/2016,REDACTED,160,NET,REDACTED,REDACTED
Gloucester City Council,23UE,Homelessness,CH120,Board And Lodging,5515,January 2016 cold weather placement,12/04/2016,417250,224,NET,Dorchester Guest House,12298D
Gloucester City Council,23UE,Homelessness,CH120,Board And Lodging,5515,January 2016 re cold weather placement,12/04/2016,417251,280,NET,Go Travel Gloucester,16433J
Gloucester City Council,23UE,REDACTED,REDACTED,REDACTED,REDACTED,REDACTED,12/04/2016,REDACTED,325.72,NET,REDACTED,REDACTED
Gloucester City Council,23UE,Homelessness,CH120,Rents,3200,CARIDAS & PRIORY PLACE JAN-MAR16,12/04/2016,416912,46249.1,NET,Gloucester City Homes,05244T
Gloucester City Council,23UE,REDACTED,REDACTED,REDACTED,REDACTED,REDACTED,12/04/2016,REDACTED,280,NET,REDACTED,REDACTED
Gloucester City Council,23UE,REDACTED,REDACTED,REDACTED,REDACTED,REDACTED,12/04/2016,REDACTED,370,NET,REDACTED,REDACTED
Gloucester City Council,23UE,REDACTED,REDACTED,REDACTED,REDACTED,REDACTED,12/04/2016,REDACTED,500,NET,REDACTED,REDACTED
Gloucester City Council,23UE,Housing Works In Default,HD500,Clearance And Cleansing Fees,5384,Fit expansion vessel,12/04/2016,417145,223.68,NET,Glevum Heating And Plumbing,54216R
Gloucester City Council,23UE,Investment Property,RB500,General Repair/Maint Buildings,3000,Guildhall toilet works,12/04/2016,417090,180,NET,Three Counties Drain Service,44033V
Gloucester City Council,23UE,REDACTED,REDACTED,REDACTED,REDACTED,REDACTED,12/04/2016,REDACTED,400,NET,REDACTED,REDACTED
Gloucester City Council,23UE,National Express,LT105,Materials For Sale,5080,Tickets March 2016,12/04/2016,417345,10121.3,NET,National Express Ltd,31455K
Gloucester City Council,23UE,National Express,LT105,Sale Of Goods And Services,9230,Tickets March 2016,12/04/2016,417345,-968.28,NET,National Express Ltd,31455K
Gloucester City Council,23UE,Nms Contract,HI102,Contracted Services,6970,April 2016 Service Fee,12/04/2016,417098,474981.93,NET,Enterprise (Aol) Ltd,06695G
Gloucester City Council,23UE,Nms Contract,HI102,Contracted Services,6970,Commodity top up March 2016,12/04/2016,417097,25856,NET,Enterprise (Aol) Ltd,06695G
Gloucester City Council,23UE,Parks Contract Management,LP100,Maint Of Grounds - General,3030,play area repairs,12/04/2016,417111,2400,NET,Greenfields Garden Services Ltd,48130G
Gloucester City Council,23UE,Parks Contract Management,LP100,Maint Of Grounds - General,3030,play area repairs,12/04/2016,417112,3006,NET,Greenfields Garden Services Ltd,48130G
Gloucester City Council,23UE,Parks Contract Management,LP100,Maint Of Grounds - General,3030,play area repairs,12/04/2016,417113,1192,NET,Greenfields Garden Services Ltd,48130G
Gloucester City Council,23UE,Public Conveniences (Client),HI400,Contracted Services,6970,Toilet Scheme April 2016,12/04/2016,417240,300,NET,Moon And Food Company Ltd,11166H
Gloucester City Council,23UE,Public Conveniences (Client),HI400,Contracted Services,6970,Toilet Scheme April 2016,12/04/2016,417242,300,NET,Eastgate Shopping Centre,11026K
Gloucester City Council,23UE,Public Conveniences (Client),HI400,Contracted Services,6970,Toilet Scheme April 2016,12/04/2016,417243,300,NET,Samuel Smith Old Brewery,11161U
Gloucester City Council,23UE,Public Conveniences (Client),HI400,Contracted Services,6970,Toilet Scheme April 2016,12/04/2016,417244,300,NET,The New Inn,13079J
Gloucester City Council,23UE,Public Conveniences (Client),HI400,Contracted Services,6970,Toilet Scheme April 2016,12/04/2016,417245,300,NET,Fab And Faded,13265K
Gloucester City Council,23UE,Public Conveniences (Client),HI400,Contracted Services,6970,Toilet Scheme April 2016,12/04/2016,417246,300,NET,Hucclecote Community Association,23020B
Gloucester City Council,23UE,Public Conveniences (Client),HI400,Contracted Services,6970,Toilet Scheme April 2016,12/04/2016,417248,300,NET,Imperial Inn,13422U
Gloucester City Council,23UE,Public Conveniences (Client),HI400,Contracted Services,6970,Toilet Scheme April 2016,12/04/2016,417249,300,NET,The Lamprey,15845K
Gloucester City Council,23UE,Retail Market - Landlord,HM300,Trade Refuse Collection,3630,Waste March 2016,12/04/2016,417062,150,NET,B & S Pointon Ltd,06253G
Gloucester City Council,23UE,Tourism Marketing,LT100,Other Minor Supplies Services,5590,JAN-MAR16 SANITARY WASTE,12/04/2016,416919,36.42,NET,Ocs Group Uk Limited T/A Cannon,06506A
Gloucester City Council,23UE,75/81 Eastgate St Wks,RY145,Other Capital Grants,89,capital grant re 75-81 Eastgate St,13/04/2016,417399,24175,CAP,Gloucester Law Centre,18157R
Gloucester City Council,23UE,75/81 Eastgate St Wks,RY145,Other Capital Grants,89,capital grant re 75-81 Eastgate St,13/04/2016,417400,22275,CAP,Gloucester & District Citizens Advice Bureau,07709Y
Gloucester City Council,23UE,REDACTED,REDACTED,REDACTED,REDACTED,REDACTED,13/04/2016,REDACTED,20,NET,REDACTED,REDACTED
Gloucester City Council,23UE,Business Rent Grant Scheme,FP306,Business Grant,7116,Grant,13/04/2016,417300,500,NET,Carbrey Housing Ltd,11098G
Gloucester City Council,23UE,Business Transformation & Tech,RT700,Computer Software <5000,5425,Idox annual maintenance,13/04/2016,417397,28720.31,NET,Idox Group,07229U
Gloucester City Council,23UE,Cemeteries,HC300,Maint Of Grounds - General,3030,Plywood,13/04/2016,417355,202,NET,Millington & Ramstedt Ltd,29815S
Gloucester City Council,23UE,Cemeteries,HC300,Repair/Maint Of Monuments,3004,RC 28/35,13/04/2016,417276,443.5,NET,Easy Mix Ltd,01403L
Gloucester City Council,23UE,Cemeteries,HC300,Routine R And M - Vehicles,4011,Socket Set,13/04/2016,417356,18.99,NET,Machine Mart,56123E
Gloucester City Council,23UE,Cems/Crems Admin,HC100,Security Services Fees,5351,Cash Processed March 2016,13/04/2016,417352,14.11,NET,G4s Cash Solutions (Uk) Ltd,04290V
Gloucester City Council,23UE,City Museum And Art Gallery,LM200,Operational Equipment <5000,5012,City Museum cards,13/04/2016,415819,550,NET,Pcd Plastic Cards Direct Ltd,15797Z
Gloucester City Council,23UE,Civica Admin Charges,RT105,Fees For Services Received,5350,CHD subscription,13/04/2016,417293,4,NET,Companies House,58954E
Gloucester City Council,23UE,Civica Admin Charges,RT105,Fees For Services Received,5350,CHD subscription,13/04/2016,417294,5,NET,Companies House,58954E
Gloucester City Council,23UE,Civica Admin Charges,RT105,Postages,5400,Post 21/03 - 01/04 2016,13/04/2016,417337,1225.55,NET,Royal Mail S.Wales & South West,35830S
Gloucester City Council,23UE,Client Revs & Bens Contract,RT240,Bailiffs Fees,5368,VAT due on statutory fees,13/04/2016,417277,0,NET,Bristow & Sutor,05450M
Gloucester City Council,23UE,Client Revs & Bens Contract,RT240,Bailiffs Fees,5368,VAT on fees collected,13/04/2016,417084,0,NET,Phoenix Commercial Collections Ltd,13435J
Gloucester City Council,23UE,Contact Centre,RB300,Postages,5400,Post 11/03 - 31/03 2016,13/04/2016,417336,1499.65,NET,Royal Mail S.Wales & South West,35830S
Gloucester City Council,23UE,Contact Centre,RB300,Stationery,5302,stationery,13/04/2016,417314,53,NET,Lyreco Uk Ltd,11746G
Gloucester City Council,23UE,Contaminated Land,HE301,Basic Pay - Operational Staff,1001,contaminated land work MAR16,13/04/2016,417398,1237.04,NET,Bromsgrove District Council,15037G
Gloucester City Council,23UE,Corporate Expenses,RC110,Subscriptions,5600,Annual Subscription 16/17,13/04/2016,417274,5857,NET,South West Councils,56523H
Gloucester City Council,23UE,Council Streetcare Team,HI101,Maint Of Grounds - General,3030,Gloucester Park Aviary,13/04/2016,417317,17.57,NET,Wood Veterinary Group,48892V
Gloucester City Council,23UE,Countryside Unit,LP201,Maint Of Grounds - General,3030,hawthorn seat,13/04/2016,417407,1022,NET,Streetmaster Products,00534D
Gloucester City Council,23UE,REDACTED,REDACTED,REDACTED,REDACTED,REDACTED,13/04/2016,REDACTED,245,NET,REDACTED,REDACTED
Gloucester City Council,23UE,Crematorium,HC200,National Assist Act Burial Exp,5593,Funeral Invoice,13/04/2016,417275,637,NET,Selim Smith & Co Funeral Directors,15156X
Gloucester City Council,23UE,Development Management,PT200,Basic Pay - Temporary Staff,2751,Temporary Staff w/e 27/3/16,13/04/2016,417104,1243.6,NET,The Oyster Partnership Limited,14900T
Gloucester City Council,23UE,Development Management,PT200,Fees For Services Received,5350,Viability Appraisal 28/10/15,13/04/2016,417261,4370.5,NET,Rca Regeneration Limited,16442H
Gloucester City Council,23UE,Development Management,PT200,Microfilming / Cd-Rom Storage,5330,Storage March 2016,13/04/2016,417257,31.18,NET,Transmedia Technology Ltd,08635T
Gloucester City Council,23UE,Docks Complex - Castlemeads Cp,RB210,Contracted Services,6970,GC vehicles,13/04/2016,417091,454.26,NET,Apcoa Parking (Uk) Ltd,09954M
Gloucester City Council,23UE,Docks Complex - Castlemeads Cp,RB210,Contracted Services,6970,P&D Headcams,13/04/2016,417089,2093.48,NET,Apcoa Parking (Uk) Ltd,09954M
Gloucester City Council,23UE,Docks Complex - Castlemeads Cp,RB210,Contracted Services,6970,variable enforcement,13/04/2016,417088,576.92,NET,Apcoa Parking (Uk) Ltd,09954M
Gloucester City Council,23UE,Economic Development,FP300,Business Grant,7116,Grant stage 1,13/04/2016,417281,1500,NET,Sjp Bridal,16439W
Gloucester City Council,23UE,Employers Pension Contribs,ZR355,Pension Contribs Incl Backf,2901,Pension Scheme,13/04/2016,417344,414,NET,Gloucestershire County Council,10614L
Gloucester City Council,23UE,Environmental Planning,LM340,Exhibits And Collections,5038,Gloucester Museum Store,13/04/2016,417280,1930,NET,Cotswold Archaeology Ltd,09180E
Gloucester City Council,23UE,Financial Services,RT200,Bank Charges And Adjustments,5950,PLUS V3 UK MAR16-MAR17,13/04/2016,416877,1299,NET,Creditsafe Business Solutions Ltd,06189P
Gloucester City Council,23UE,Folk Museum,LM210,Operational Equipment <5000,5012,City Museum cards,13/04/2016,415819,550,NET,Pcd Plastic Cards Direct Ltd,15797Z
Gloucester City Council,23UE,Guildhall Bar And Caf�,LA210,Catering Provisions -Food,5110,coffee,13/04/2016,417312,147.63,NET,Ethical Addictions Ltd,11654N
Gloucester City Council,23UE,Guildhall Bar And Caf�,LA210,Catering Provisions -Food,5110,icecream for resale,13/04/2016,417313,72,NET,Winstones Ice Cream Ltd,56347D
Gloucester City Council,23UE,Guildhall Bar And Caf�,LA210,Catering Provisions -Liquor,5111,drinks,13/04/2016,417311,753.43,NET,Cellar Supplies Cheltenham Ltd,01563L
Gloucester City Council,23UE,REDACTED,REDACTED,REDACTED,REDACTED,REDACTED,13/04/2016,REDACTED,100,NET,REDACTED,REDACTED
Gloucester City Council,23UE,REDACTED,REDACTED,REDACTED,REDACTED,REDACTED,13/04/2016,REDACTED,262.19,NET,REDACTED,REDACTED
Gloucester City Council,23UE,REDACTED,REDACTED,REDACTED,REDACTED,REDACTED,13/04/2016,REDACTED,204.16,NET,REDACTED,REDACTED
Gloucester City Council,23UE,REDACTED,REDACTED,REDACTED,REDACTED,REDACTED,13/04/2016,REDACTED,561.82,NET,REDACTED,REDACTED
Gloucester City Council,23UE,REDACTED,REDACTED,REDACTED,REDACTED,REDACTED,13/04/2016,REDACTED,230.1,NET,REDACTED,REDACTED
Gloucester City Council,23UE,REDACTED,REDACTED,REDACTED,REDACTED,REDACTED,13/04/2016,REDACTED,201.67,NET,REDACTED,REDACTED
Gloucester City Council,23UE,REDACTED,REDACTED,REDACTED,REDACTED,REDACTED,13/04/2016,REDACTED,310.37,NET,REDACTED,REDACTED
Gloucester City Council,23UE,REDACTED,REDACTED,REDACTED,REDACTED,REDACTED,13/04/2016,REDACTED,168.81,NET,REDACTED,REDACTED
Gloucester City Council,23UE,REDACTED,REDACTED,REDACTED,REDACTED,REDACTED,13/04/2016,REDACTED,140.87,NET,REDACTED,REDACTED
Gloucester City Council,23UE,REDACTED,REDACTED,REDACTED,REDACTED,REDACTED,13/04/2016,REDACTED,221.23,NET,REDACTED,REDACTED
Gloucester City Council,23UE,Guildhall Cinema,LA202,Maint Agreements - Buildings,3010,Platinum service,13/04/2016,417349,1595,NET,Arts Alliance Media Ltd,14477G
Gloucester City Council,23UE,REDACTED,REDACTED,REDACTED,REDACTED,REDACTED,13/04/2016,REDACTED,2200,NET,REDACTED,REDACTED
Gloucester City Council,23UE,Head Of Financial Services,GO100,Vocational Training,2970,Full Conference,13/04/2016,417273,695,NET,Redactive Events Ltd,11023X
Gloucester City Council,23UE,Health And Safety,HD300,Hospitality,5122,room hire 3/3/16,13/04/2016,417320,40.4,NET,Aspire Sports & Cultural Trust,08135V
Gloucester City Council,23UE,Horsbere Brook Planting Ea,LY147,Contract Payments,20,M5 wire coil,13/04/2016,417412,19.16,CAP,Countrywide Farmers,55687J
Gloucester City Council,23UE,Hous Market Partnership Grant,CY045,Other Capital Grants,89,Town Ham Allotments work,13/04/2016,417299,1450,CAP,Wilson Associates (Consulting) Limited,16413R
Gloucester City Council,23UE,Human Resources,EH100,Miscellaneous Expenses,2952,expenses for coaching sessions,13/04/2016,417116,64.8,NET,West Midland Employers,16435E
Gloucester City Council,23UE,Investment Property,RB500,Consultants Fees,5349,Professional Fees,13/04/2016,417268,2835.2,NET,Lda Design Consulting Ltd,03500T
Gloucester City Council,23UE,Land Searches,RO300,Charges For Services,9300,2016/17 subscription,13/04/2016,417301,115,NET,Local Land Charges Institute,04897X
Gloucester City Council,23UE,Off Street Car Parks,PP110,Contracted Services,6970,other items,13/04/2016,417092,14760.9,NET,Apcoa Parking (Uk) Ltd,09954M
Gloucester City Council,23UE,Off Street Car Parks,PP110,Contracted Services,6970,variable enforcement,13/04/2016,417088,3407.25,NET,Apcoa Parking (Uk) Ltd,09954M
Gloucester City Council,23UE,Retail Market - Landlord,HM300,Operational Equipment <5000,5012,Compactor rental APR16,13/04/2016,417282,280.56,NET,System Rental Uk Ltd,03239E
Gloucester City Council,23UE,Theatre Tokens,LT106,Materials For Sale,5080,tickets sold on commission,13/04/2016,417402,90,NET,Society Of London Theatre,05656Z
Gloucester City Council,23UE,Theatre Tokens,LT106,Sale Of Goods And Services,9230,tickets sold on commission,13/04/2016,417402,-4.5,NET,Society Of London Theatre,05656Z
Gloucester City Council,23UE,Tic Trading,LT110,Publications For Sale,5064,25 x Catherdal guide books for resale,13/04/2016,417409,58.75,NET,Gloucester Cathedral Enterprises Ltd,50228X
Gloucester City Council,23UE,Vehicles,RS140,Fuel,4012,Fuel,13/04/2016,417343,90.44,NET,Allstar Business Solutions Ltd (Arval),06594A
Gloucester City Council,23UE,Vehicles,RS140,Tyres,4014,VX03OBW service,13/04/2016,417410,70.45,NET,Ats Euromaster Ltd,06005E
Gloucester City Council,23UE,75/81 Eastgate St Wks,RY145,Other Capital Grants,89,grant re 75-81 Eastgate St sale,14/04/2016,417491,1900,CAP,The Chinese Womans Guild,16450J
Gloucester City Council,23UE,Aspire Admin Charges,LC105,Fees For Services Received,5350,GCC staff memberships MAR16,14/04/2016,417405,580,NET,Aspire Sports & Cultural Trust,08135V
Gloucester City Council,23UE,Aspire Admin Charges,LC105,Security Services Fees,5351,cash collection MAY16,14/04/2016,417404,184.94,NET,G4s Cash Solutions (Uk) Ltd,04290V
Gloucester City Council,23UE,Business Transformation & Tech,RT700,Computer Software <5000,5425,OEA agreement FEB16-JAN17,14/04/2016,417488,6000,NET,Astun Technology Ltd,09668S
Gloucester City Council,23UE,Cemeteries,HC300,Basic Pay - Temporary Staff,2751,Temp staff w/e 03/04/2016,14/04/2016,417264,363.63,NET,Premiere Employment Group Ltd,55468Z
Gloucester City Council,23UE,Cemeteries,HC300,Basic Pay - Temporary Staff,2751,temp staff w/e 27/03/2016,14/04/2016,417070,357.77,NET,Premiere Employment Group Ltd,55468Z
Gloucester City Council,23UE,Cemeteries,HC300,Basic Pay - Temporary Staff,2751,Lanscapers w/e 13/03/2016,14/04/2016,416095,809.38,NET,Premiere Employment Group Ltd,55468Z
Gloucester City Council,23UE,Cemeteries,HC300,Basic Pay - Temporary Staff,2751,temp staff w/e 03/04/2016,14/04/2016,417263,275.66,NET,Premiere Employment Group Ltd,55468Z
Gloucester City Council,23UE,Cemeteries,HC300,Basic Pay - Temporary Staff,2751,Temp staff w/e 27/03/2016,14/04/2016,417071,357.77,NET,Premiere Employment Group Ltd,55468Z
Gloucester City Council,23UE,Cems/Crems Admin,HC100,Security Services Fees,5351,cash collection MAY16,14/04/2016,417404,105.42,NET,G4s Cash Solutions (Uk) Ltd,04290V
Gloucester City Council,23UE,City Museum And Art Gallery,LM200,Security Services Fees,5351,cash collection MAY16,14/04/2016,417404,92.47,NET,G4s Cash Solutions (Uk) Ltd,04290V
Gloucester City Council,23UE,Civica It Contract,RT270,Contracted Services,6970,IT Services May 2016,14/04/2016,417094,48061.14,NET,Civica Uk Ltd,10841X
Gloucester City Council,23UE,Cleansing Services Admin,HI100,Maint Of Grounds - General,3030,Gloucester Park fountains,14/04/2016,417357,800.29,NET,Ermin Plant Hire & Services Ltd,14150V
Gloucester City Council,23UE,Contact Centre,RB300,Stationery,5302,a4 paper,14/04/2016,417484,523.15,NET,Premier Paper Group Ltd,09166Y
Gloucester City Council,23UE,Contact Centre,RB300,Stationery,5302,stationery,14/04/2016,417483,139.89,NET,Lyreco Uk Ltd,11746G
Gloucester City Council,23UE,Contaminated Land,HE301,Fees For Services Received,5350,Contaminated Land Work,14/04/2016,417265,2281.44,NET,Bromsgrove District Council,15037G
Gloucester City Council,23UE,Council Streetcare Team,HI101,Maint Of Grounds - General,3030,football goals,14/04/2016,417323,629,NET,Broxap Ltd,01141U
Gloucester City Council,23UE,Countryside Unit,LP201,Major R And M - Vehicles,4010,Kubota service,14/04/2016,417408,851.54,NET,D C Merrett & Co Ltd,15821E
Gloucester City Council,23UE,Countryside Unit,LP201,Routine R And M - Vehicles,4011,Kubota service,14/04/2016,417408,132,NET,D C Merrett & Co Ltd,15821E
Gloucester City Council,23UE,Docks Complex - Services,RB100,Licences,5703,Docks TV licence 2016/17,14/04/2016,417489,145.5,NET,Tv Licensing,32680R
Gloucester City Council,23UE,Docks Complex - Services,RB100,Security Services Fees,5351,cash collection MAY16,14/04/2016,417404,276.23,NET,G4s Cash Solutions (Uk) Ltd,04290V
Gloucester City Council,23UE,Docks Complex - Services,RB100,Security Services Fees,5351,Docks contract excess MAR16,14/04/2016,417403,5.96,NET,G4s Cash Solutions (Uk) Ltd,04290V
Gloucester City Council,23UE,Economic Development,FP300,Business Grant,7116,Grant stage 1,14/04/2016,417308,875,NET,Slotplay,16409F
Gloucester City Council,23UE,Equalities,EH102,Fees For Services Received,5350,subscription 2016/17,14/04/2016,417490,38,NET,Gloucestershire Resource Centre Ltd,51954Y
Gloucester City Council,23UE,Flex Replacement,LY160,Contract Payments,20,SRO4 hosting & support,14/04/2016,417295,19240,CAP,Toptix (Uk) Ltd,16411V
Gloucester City Council,23UE,Flex Replacement,LY160,Contract Payments,20,ticketing system work,14/04/2016,417328,7500,CAP,Toptix (Uk) Ltd,16411V
Gloucester City Council,23UE,Flex Replacement,LY160,Contract Payments,20,ticket printers & barcode scanners,14/04/2016,417296,4535,CAP,Toptix (Uk) Ltd,16411V
Gloucester City Council,23UE,Folk Museum,LM210,Security Services Fees,5351,cash collection MAY16,14/04/2016,417404,92.46,NET,G4s Cash Solutions (Uk) Ltd,04290V
Gloucester City Council,23UE,General Drainage Works,PY241,Contract Payments,20,Tewkesbury Rd PLP scheme,14/04/2016,417322,785,CAP,Jba Consulting,15841Y
Gloucester City Council,23UE,Gloucester Guildhall,LA100,Security Services Fees,5351,cash collection MAY16,14/04/2016,417404,92.46,NET,G4s Cash Solutions (Uk) Ltd,04290V
Gloucester City Council,23UE,Guildhall Bar And Caf�,LA210,Hire Of Equipment,5020,Various Items,14/04/2016,417271,892.51,NET,Nisbets,55372P
Gloucester City Council,23UE,REDACTED,REDACTED,REDACTED,REDACTED,REDACTED,14/04/2016,REDACTED,289.48,NET,REDACTED,REDACTED
Gloucester City Council,23UE,Homelessness,CH120,Fees For Services Received,5350,Medical Advice,14/04/2016,417106,35,NET,Now Medical,03468L
Gloucester City Council,23UE,Homelessness Prevention,CH122,Fees For Services Received,5350,Medical Advice,14/04/2016,417106,35,NET,Now Medical,03468L
Gloucester City Council,23UE,Housing Works In Default,HD500,Clearance And Cleansing Fees,5384,Electrical Faults - Call Out,14/04/2016,415959,50,NET,Gtd Electrical Services,16415L
Gloucester City Council,23UE,Kings Quarter,RY146,Contract Payments,20,signs for toilet unit,14/04/2016,417413,151.5,CAP,Hanman Split Ltd,56889J
Gloucester City Council,23UE,Pollution Control,HE300,Fees For Services Received,5350,Pollution Prevention Control,14/04/2016,417266,470,NET,Bromsgrove District Council,15037G
Gloucester City Council,23UE,Rehousing,CH111,Fees For Services Received,5350,Medical Advice,14/04/2016,417106,275,NET,Now Medical,03468L
Gloucester City Council,23UE,Retail Market - Landlord,HM300,Window Cleaning,3610,APR16 window  cleaning,14/04/2016,417482,140,NET,Cornwall Cleaning Services,14050A
Gloucester City Council,23UE,The Arbor,HC501,Other Minor Supplies Services,5590,catering equipment,14/04/2016,417498,62.16,NET,Nisbets,55372P
Gloucester City Council,23UE,Tic Trading,LT110,Materials For Sale,5080,goods for resale,14/04/2016,417492,233.35,NET,1st Take Ltd,05598B
Gloucester City Council,23UE,REDACTED,REDACTED,REDACTED,REDACTED,REDACTED,14/04/2016,REDACTED,90,NET,REDACTED,REDACTED
Gloucester City Council,23UE,Tic Trading,LT110,Publications For Sale,5064,canal maps for resale,14/04/2016,417494,49.5,NET,Darien-Jones Publishing,04497U
Gloucester City Council,23UE,Tic Trading,LT110,Publications For Sale,5064,Glos Docks guides for resale,14/04/2016,417493,133.2,NET,Black Dwarf Lightmoor Publications Ltd,59484M
Gloucester City Council,23UE,Tourism Marketing,LT100,Security Services Fees,5351,cash collection MAY16,14/04/2016,417404,92.46,NET,G4s Cash Solutions (Uk) Ltd,04290V
Gloucester City Council,23UE,Blackfriars,LA609,Hire Of Equipment,5020,hire of tables & chairs,15/04/2016,412507,172.5,NET,Valley Furniture Hire Ltd,08324P
Gloucester City Council,23UE,REDACTED,REDACTED,REDACTED,REDACTED,REDACTED,15/04/2016,REDACTED,175,NET,REDACTED,REDACTED
Gloucester City Council,23UE,Cemeteries,HC300,Trade Refuse Tipping Fees,6297,skip exchange,15/04/2016,417100,1332.6,NET,Allstone Sand & Gravel Aggregates Ltd,00940M
Gloucester City Council,23UE,Cemeteries,HC300,Trade Refuse Tipping Fees,6297,skip exchange,15/04/2016,417102,420,NET,Allstone Sand & Gravel Aggregates Ltd,00940M
Gloucester City Council,23UE,Cemeteries,HC300,Trade Refuse Tipping Fees,6297,Various Items,15/04/2016,417099,960,NET,Allstone Sand & Gravel Aggregates Ltd,00940M
Gloucester City Council,23UE,Disabled Facilities Grants,CY013,Disabled Facility Grants,74,MDF 5162 final payment,15/04/2016,417543,3517.69,CAP,Mears Home Improvement Ltd,00096G
Gloucester City Council,23UE,REDACTED,REDACTED,REDACTED,REDACTED,REDACTED,15/04/2016,REDACTED,130,NET,REDACTED,REDACTED
Gloucester City Council,23UE,REDACTED,REDACTED,REDACTED,REDACTED,REDACTED,15/04/2016,REDACTED,740,NET,REDACTED,REDACTED
Gloucester City Council,23UE,REDACTED,REDACTED,REDACTED,REDACTED,REDACTED,15/04/2016,REDACTED,-111,NET,REDACTED,REDACTED
Gloucester City Council,23UE,REDACTED,REDACTED,REDACTED,REDACTED,REDACTED,15/04/2016,REDACTED,588.52,NET,REDACTED,REDACTED
Gloucester City Council,23UE,REDACTED,REDACTED,REDACTED,REDACTED,REDACTED,15/04/2016,REDACTED,637,NET,REDACTED,REDACTED
Gloucester City Council,23UE,Investment Property,RB500,Service Charges,3020,transfer of service charge collected,15/04/2016,417544,332.71,NET,Alder King,02367D
Gloucester City Council,23UE,Off Street Car Parks,PP110,General Repair/Maint Buildings,3000,Eastgate car park works,15/04/2016,417414,5171.6,NET,Pure Asphalt Co Ltd,08352P
Gloucester City Council,23UE,Business Transformation & Tech,RT700,Computer Software <5000,5425,Flex support APR-MAY16,18/04/2016,417589,4314.99,NET,Omnico Group Uk Ltd,10290R
Gloucester City Council,23UE,Cemeteries,HC300,Maint Of Grounds - General,3030,60m turf,18/04/2016,417577,150,NET,Aran Turf,56656L
Gloucester City Council,23UE,Cemeteries,HC300,Routine R And M - Vehicles,4011,CHAINSAW SERVICE,18/04/2016,417585,90.15,NET,Garden Machinery Gloucester,55641K
Gloucester City Council,23UE,Client Revs & Bens Contract,RT240,Bailiffs Fees,5368,VAT only invoice,18/04/2016,417566,0,NET,Bristow & Sutor,05450M
Gloucester City Council,23UE,Client Revs & Bens Contract,RT240,Bailiffs Fees,5368,VAT only invoice,18/04/2016,417567,0,NET,Bristow & Sutor,05450M
Gloucester City Council,23UE,Council Streetcare Team,HI101,Maint Of Grounds - General,3030,Various Items,18/04/2016,417346,21.37,NET,Angell Pets Ltd,15773P
Gloucester City Council,23UE,Countryside Unit,LP201,General Repair/Maint Buildings,3000,postcrete,18/04/2016,417580,19.5,NET,B&Q Trade Account,06346Y
Gloucester City Council,23UE,Crematorium,HC200,Cleaning Materials,3600,APR-JUN16,18/04/2016,417581,29.81,NET,Initial Washroom Solutions,24219P
Gloucester City Council,23UE,Crematorium,HC200,General Repair/Maint Buildings,3000,FLORAL DISPLAYS,18/04/2016,417593,707.37,NET,Zagota Creations,03211D
Gloucester City Council,23UE,Crematorium,HC200,General Repair/Maint Buildings,3000,MAY16-APR17 service,18/04/2016,417591,900,NET,Pyramid Hygiene Ltd,01897B
Gloucester City Council,23UE,Development Management,PT200,Charges For Services,9300,returned fee 16/00060/FUL,18/04/2016,417598,195,NET,Barton Wilmore,17021D
Gloucester City Council,23UE,REDACTED,REDACTED,REDACTED,REDACTED,REDACTED,18/04/2016,REDACTED,3,NET,REDACTED,REDACTED
Gloucester City Council,23UE,Docks Complex - Services,RB100,Hire Of Equipment,5020,city museum water cooler rental,18/04/2016,417578,110,NET,Cooleraid Ltd,16405P
Gloucester City Council,23UE,Docks Complex - Services,RB100,Hire Of Equipment,5020,crem water cooler rental,18/04/2016,417574,440,NET,Cooleraid Ltd,16405P
Gloucester City Council,23UE,Docks Complex - Services,RB100,Hire Of Equipment,5020,Guildhall water cooler rental,18/04/2016,417584,110,NET,Cooleraid Ltd,16405P
Gloucester City Council,23UE,Docks Complex - Services,RB100,Lift Maintenance,3051,Engineer 12/01/16,18/04/2016,413716,37.5,NET,Pickerings Europe Ltd,58816U
Gloucester City Council,23UE,Docks Complex - Services,RB100,Lift Maintenance,3051,HKP staff side lift,18/04/2016,417394,140.63,NET,Pickerings Europe Ltd,58816U
Gloucester City Council,23UE,Docks Complex - Services,RB100,Recycling,3631,docks recycling,18/04/2016,417309,196.3,NET,Printwaste Recycling,57114W
Gloucester City Council,23UE,Economic Development,FP300,Grants To Advice Centres,7100,Business support programme,18/04/2016,417587,13500,NET,Gloucestershire Enterprise Ltd,18643A
Gloucester City Council,23UE,REDACTED,REDACTED,REDACTED,REDACTED,REDACTED,18/04/2016,REDACTED,200,NET,REDACTED,REDACTED
Gloucester City Council,23UE,Guildhall Bar And Caf�,LA210,Catering Provisions -Food,5110,blackfriars catering,18/04/2016,417310,132.75,NET,Catercater Ltd,08620G
Gloucester City Council,23UE,Guildhall Cinema,LA202,Hire Of Equipment,5020,monthly film transport charge,18/04/2016,417568,219.59,NET,Nft Logistics Ltd,13505N
Gloucester City Council,23UE,REDACTED,REDACTED,REDACTED,REDACTED,REDACTED,18/04/2016,REDACTED,1125,NET,REDACTED,REDACTED
Gloucester City Council,23UE,REDACTED,REDACTED,REDACTED,REDACTED,REDACTED,18/04/2016,REDACTED,100,NET,REDACTED,REDACTED
Gloucester City Council,23UE,Head Of Regeneration & Eco Dev,GO102,Consultants Fees,5349,Bakers Quay professional services,18/04/2016,417570,37228.05,NET,Trowers & Hamlins Llp,51600P
Gloucester City Council,23UE,Head Of Regeneration & Eco Dev,GO102,Consultants Fees,5349,professional service re Bakers Quay,18/04/2016,417569,6750,NET,Trowers & Hamlins Llp,51600P
Gloucester City Council,23UE,Head Of Regeneration & Eco Dev,GO102,Printing,5300,Mount & Frame S Korea item,18/04/2016,417575,50,NET,Geoff C Cook Picture Framing,58727U
Gloucester City Council,23UE,Housing Works In Default,HD500,Clearance And Cleansing Fees,5384,9 WELLESLEY ST WORKS,18/04/2016,417579,251.5,NET,Mears Home Improvement Ltd,00096G
Gloucester City Council,23UE,Housing Works In Default,HD500,Clearance And Cleansing Fees,5384,ARCHIVAL BOXES PROVISION,18/04/2016,417586,744,NET,Gloucester City Homes,05244T
Gloucester City Council,23UE,Housing Works In Default,HD500,Clearance And Cleansing Fees,5384,Hill House caraven park works,18/04/2016,417588,50,NET,Gtd Electrical Services,16415L
Gloucester City Council,23UE,Investment Property,RB500,Gas Fittings Serv/Repair,3052,Folk Museum HVAC MTC,18/04/2016,417415,116.6,NET,Axiom Building Services,14908A
Gloucester City Council,23UE,Investment Property,RB500,Gas Fittings Serv/Repair,3052,HKP works,18/04/2016,417418,131,NET,Axiom Building Services,14908A
Gloucester City Council,23UE,Investment Property,RB500,Gas Fittings Serv/Repair,3052,HKP works,18/04/2016,417419,236,NET,Axiom Building Services,14908A
Gloucester City Council,23UE,Investment Property,RB500,Gas Fittings Serv/Repair,3052,HKP works,18/04/2016,417421,152,NET,Axiom Building Services,14908A
Gloucester City Council,23UE,Investment Property,RB500,Gas Fittings Serv/Repair,3052,North Warehouse works,18/04/2016,417420,348,NET,Axiom Building Services,14908A
Gloucester City Council,23UE,Shopmobility,PE200,Cleaning Materials,3600,APR16 SANITARY WASTE,18/04/2016,416921,12.91,NET,Ocs Group Uk Limited T/A Cannon,06506A
Gloucester City Council,23UE,Allotments,HI104,Water Supply,3400,ACCT 7890105225,19/04/2016,413121,361.09,NET,Severn Trent Water,01823H
Gloucester City Council,23UE,Allotments,HI104,Water Supply,3400,ACCT 7890105225,19/04/2016,414403,1326.92,NET,Severn Trent Water,01823H
Gloucester City Council,23UE,Blackfriars,LA609,Contract Cleaning,3620,Cover Cleaning Mar 16,19/04/2016,417115,325,NET,Into Cleaning,14609P
Gloucester City Council,23UE,Blackfriars,LA609,Water Supply,3400,ACCT 7890105225,19/04/2016,414403,317.12,NET,Severn Trent Water,01823H
Gloucester City Council,23UE,Bus Station,RB400,Water Supply,3400,acct 7890105225,19/04/2016,417479,173.63,NET,Severn Trent Water,01823H
Gloucester City Council,23UE,Bus Station,RB400,Water Supply,3400,ACCT 7890105225,19/04/2016,411965,169.17,NET,Severn Trent Water,01823H
Gloucester City Council,23UE,Bus Station,RB400,Water Supply,3400,ACCT 7890105225,19/04/2016,413121,174.81,NET,Severn Trent Water,01823H
Gloucester City Council,23UE,Bus Station,RB400,Water Supply,3400,ACCT 7890105225,19/04/2016,414403,180.44,NET,Severn Trent Water,01823H
Gloucester City Council,23UE,Bus Station,RB400,Water Supply,3400,ACCT 7890105225,19/04/2016,415865,447.29,NET,Severn Trent Water,01823H
Gloucester City Council,23UE,Cemeteries,HC300,Clothing,5200,POLOSHIRTS,19/04/2016,417571,20.4,NET,Safpro Industrial Supply Co,39190W
Gloucester City Council,23UE,Cemeteries,HC300,Clothing,5200,workwear,19/04/2016,417497,238.95,NET,Safpro Industrial Supply Co,39190W
Gloucester City Council,23UE,Cemeteries,HC300,Maint Of Grounds - General,3030,3m turf,19/04/2016,417576,9,NET,Aran Turf,56656L
Gloucester City Council,23UE,Cemeteries,HC300,Water Supply,3400,ACCT: 3850367020,19/04/2016,416000,329.75,NET,Severn Trent Water,01823H
Gloucester City Council,23UE,City Museum And Art Gallery,LM200,Water Supply,3400,ACCT 7890105225,19/04/2016,414403,567.23,NET,Severn Trent Water,01823H
Gloucester City Council,23UE,Corporate Expenses,RC110,Subscriptions,5600,treasury retainer,19/04/2016,417298,10000,NET,Capita Treasury Solutions Ltd,05281L
Gloucester City Council,23UE,Council Streetcare Team,HI101,Water Supply,3400,ACCT 6540022682,19/04/2016,412235,309.48,NET,Severn Trent Water,01823H
Gloucester City Council,23UE,Council Streetcare Team,HI101,Water Supply,3400,acct 7890105225,19/04/2016,417479,5.46,NET,Severn Trent Water,01823H
Gloucester City Council,23UE,Council Streetcare Team,HI101,Water Supply,3400,ACCT 7890105225,19/04/2016,411965,104.28,NET,Severn Trent Water,01823H
Gloucester City Council,23UE,Council Streetcare Team,HI101,Water Supply,3400,ACCT 7890105225,19/04/2016,413121,107.76,NET,Severn Trent Water,01823H
Gloucester City Council,23UE,Council Streetcare Team,HI101,Water Supply,3400,ACCT 7890105225,19/04/2016,414403,-3738.86,NET,Severn Trent Water,01823H
Gloucester City Council,23UE,Council Streetcare Team,HI101,Water Supply,3400,ACCT 7890105225,19/04/2016,415865,284.16,NET,Severn Trent Water,01823H
Gloucester City Council,23UE,Countryside Unit,LP201,Water Supply,3400,ACCT 7890105225,19/04/2016,411965,473.25,NET,Severn Trent Water,01823H
Gloucester City Council,23UE,Countryside Unit,LP201,Water Supply,3400,ACCT 7890105225,19/04/2016,413121,16.81,NET,Severn Trent Water,01823H
Gloucester City Council,23UE,Countryside Unit,LP201,Water Supply,3400,ACCT 7890105225,19/04/2016,414403,63.5,NET,Severn Trent Water,01823H
Gloucester City Council,23UE,Crematorium,HC200,Water Supply,3400,acct 7890105225,19/04/2016,417479,38.68,NET,Severn Trent Water,01823H
Gloucester City Council,23UE,Crematorium,HC200,Water Supply,3400,ACCT 7890105225,19/04/2016,411965,1883.14,NET,Severn Trent Water,01823H
Gloucester City Council,23UE,Crematorium,HC200,Water Supply,3400,ACCT 7890105225,19/04/2016,413121,38.96,NET,Severn Trent Water,01823H
Gloucester City Council,23UE,Crematorium,HC200,Water Supply,3400,ACCT 7890105225,19/04/2016,414403,1648.4,NET,Severn Trent Water,01823H
Gloucester City Council,23UE,Crematorium,HC200,Water Supply,3400,ACCT 7890105225,19/04/2016,415865,35.19,NET,Severn Trent Water,01823H
Gloucester City Council,23UE,Docks Complex - Services,RB100,Water Supply,3400,ACCT 7890105225,19/04/2016,414403,2127.34,NET,Severn Trent Water,01823H
Gloucester City Council,23UE,Economic Development,FP300,Business Grant,7116,Grant,19/04/2016,417626,3000,NET,Highspeed Office Ltd,16448V
Gloucester City Council,23UE,Financial Services,RT200,Vocational Training,2970,AAT Exam Fees 07/05/16,19/04/2016,417638,77,NET,Pitman Training Worcester,16384W
Gloucester City Council,23UE,Folk Museum,LM210,Water Supply,3400,ACCT 7890105225,19/04/2016,413121,583.49,NET,Severn Trent Water,01823H
Gloucester City Council,23UE,Gloucester Guildhall,LA100,Cleaning Materials,3600,JAN-MAR16 SANITARY WASTE,19/04/2016,416925,148.2,NET,Ocs Group Uk Limited T/A Cannon,06506A
Gloucester City Council,23UE,Gloucester Guildhall,LA100,Water Supply,3400,ACCT 7890105225,19/04/2016,414403,350.46,NET,Severn Trent Water,01823H
Gloucester City Council,23UE,REDACTED,REDACTED,REDACTED,REDACTED,REDACTED,19/04/2016,REDACTED,0,NET,REDACTED,REDACTED
Gloucester City Council,23UE,REDACTED,REDACTED,REDACTED,REDACTED,REDACTED,19/04/2016,REDACTED,120,NET,REDACTED,REDACTED
Gloucester City Council,23UE,REDACTED,REDACTED,REDACTED,REDACTED,REDACTED,19/04/2016,REDACTED,272.72,NET,REDACTED,REDACTED
Gloucester City Council,23UE,Investment Property,RB500,Gas Fittings Serv/Repair,3052,79A Sebert St works,19/04/2016,417422,76,NET,Axiom Building Services,14908A
Gloucester City Council,23UE,Investment Property,RB500,Gas Fittings Serv/Repair,3052,HKP works,19/04/2016,417416,100.96,NET,Axiom Building Services,14908A
Gloucester City Council,23UE,Investment Property,RB500,Gas Fittings Serv/Repair,3052,HKP works,19/04/2016,417417,110,NET,Axiom Building Services,14908A
Gloucester City Council,23UE,Investment Property,RB500,Water Supply,3400,ACCT 7890105225,19/04/2016,411965,224,NET,Severn Trent Water,01823H
Gloucester City Council,23UE,Investment Property,RB500,Water Supply,3400,ACCT 7890105225,19/04/2016,413121,623.27,NET,Severn Trent Water,01823H
Gloucester City Council,23UE,Investment Property,RB500,Water Supply,3400,ACCT 7890105225,19/04/2016,414403,445.48,NET,Severn Trent Water,01823H
Gloucester City Council,23UE,Investment Property,RB500,Water Supply,3400,ACCT 7890105225,19/04/2016,415865,706.19,NET,Severn Trent Water,01823H
Gloucester City Council,23UE,Kings Quarter,RY146,Contract Payments,20,asbestos removal Grosvenor House,19/04/2016,417565,5350,CAP,Abbey Contracting Ltd,16395R
Gloucester City Council,23UE,Kings Quarter,RY146,Contract Payments,20,bus station Asbestos removal,19/04/2016,417564,17711.64,CAP,Abbey Contracting Ltd,16395R
Gloucester City Council,23UE,Nms Contract,HI102,Additional Non-Tender Items,6973,Recycling Boxes & Refurbishments,19/04/2016,414971,5932.93,NET,Enterprise (Aol) Ltd,06695G
Gloucester City Council,23UE,Off Street Car Parks,PP110,Water Supply,3400,acct 7890105225,19/04/2016,417479,1994.4,NET,Severn Trent Water,01823H
Gloucester City Council,23UE,Off Street Car Parks,PP110,Water Supply,3400,ACCT 7890105225,19/04/2016,411965,1694.75,NET,Severn Trent Water,01823H
Gloucester City Council,23UE,Off Street Car Parks,PP110,Water Supply,3400,ACCT 7890105225,19/04/2016,413121,1515.15,NET,Severn Trent Water,01823H
Gloucester City Council,23UE,Off Street Car Parks,PP110,Water Supply,3400,ACCT 7890105225,19/04/2016,414403,3654.58,NET,Severn Trent Water,01823H
Gloucester City Council,23UE,Off Street Car Parks,PP110,Water Supply,3400,ACCT 7890105225,19/04/2016,415865,1558.23,NET,Severn Trent Water,01823H
Gloucester City Council,23UE,Parks Contract Management,LP100,Maint Of Grounds - General,3030,play area & parks works,19/04/2016,417561,437.81,NET,Enterprise (Aol) Ltd,06695G
Gloucester City Council,23UE,Planning Policy & Heritage,PT300,Basic Pay - Temporary Staff,2751,temporary staff w/e 27/3/16,19/04/2016,417103,2224.75,NET,The Oyster Partnership Limited,14900T
Gloucester City Council,23UE,Planning Policy & Heritage,PT300,Basic Pay - Temporary Staff,2751,temporary staff w/e 3/4/16,19/04/2016,417297,2224.24,NET,The Oyster Partnership Limited,14900T
Gloucester City Council,23UE,Planning Policy & Heritage,PT300,Vocational Training,2970,2016 IHBC annual day school,19/04/2016,417495,130,NET,Ihbc Enterprises Ltd,58032P
Gloucester City Council,23UE,Printing,RP103,Printing,5300,PRINTING CHARGES,19/04/2016,416892,1283,NET,Alpha Colour Printers Ltd,00945B
Gloucester City Council,23UE,Public Conveniences (Client),HI400,Water Supply,3400,ACCT 7890105225,19/04/2016,414403,438,NET,Severn Trent Water,01823H
Gloucester City Council,23UE,Retail Market - Landlord,HM300,Water Supply,3400,acct 6500437006,19/04/2016,415072,17436.93,NET,Severn Trent Water,01823H
Gloucester City Council,23UE,Shopmobility,PE200,Water Supply,3400,ACCT 7890105225,19/04/2016,414403,162.8,NET,Severn Trent Water,01823H
Gloucester City Council,23UE,Tic Trading,LT110,Materials For Sale,5080,goods for resale,19/04/2016,417083,397.8,NET,Elgate,11620G
Gloucester City Council,23UE,Tourism Marketing,LT100,Water Supply,3400,ACCT 7890105225,19/04/2016,414403,110.22,NET,Severn Trent Water,01823H
Gloucester City Council,23UE,Utilities,PT502,Electricity Supply,3110,GROSVENOR HOUSE,19/04/2016,413745,0.69,NET,E.On,01484H
Gloucester City Council,23UE,Utilities,PT502,Electricity Supply,3110,GROSVENOR HOUSE,19/04/2016,413747,0.69,NET,E.On,01484H
Gloucester City Council,23UE,Utilities,PT502,Electricity Supply,3110,GROSVENOR HOUSE,19/04/2016,413748,13.05,NET,E.On,01484H
Gloucester City Council,23UE,Utilities,PT502,Electricity Supply,3110,GROSVENOR HOUSE,19/04/2016,413749,0.69,NET,E.On,01484H
Gloucester City Council,23UE,Utilities,PT502,Electricity Supply,3110,Usage Jan - Mar 16,19/04/2016,416576,117.32,NET,Opus Energy (Corporate),12788B
Gloucester City Council,23UE,Utilities,PT502,Gas Supply,3100,GROSVENOR HOUSE,19/04/2016,413746,0.69,NET,E.On,01484H
Gloucester City Council,23UE,Vehicles,RS140,Fuel,4012,vehicle fuel,19/04/2016,417559,117.64,NET,Allstar Business Solutions Ltd (Arval),06594A
Gloucester City Council,23UE,Allotments,HI104,Water Supply,3400,aquafund agreement charges,20/04/2016,417628,217.38,NET,Advanced Demand Side Management Ltd,16229K
Gloucester City Council,23UE,Allotments,HI104,Water Supply,3400,AQUAFUND AGREEMENT CHARGES,20/04/2016,417632,652.77,NET,Advanced Demand Side Management Ltd,16229K
Gloucester City Council,23UE,Allotments,HI104,Water Supply,3400,AQUAFUND SERVICE CHARGES,20/04/2016,417634,49.44,NET,Advanced Demand Side Management Ltd,16229K
Gloucester City Council,23UE,Allotments,HI104,Water Supply,3400,AQUAFUND SERVICE CHARGES,20/04/2016,417635,555.78,NET,Advanced Demand Side Management Ltd,16229K
Gloucester City Council,23UE,Allotments,HI104,Water Supply,3400,AQUAFUND SERVICE CHARGES,20/04/2016,417636,97.3,NET,Advanced Demand Side Management Ltd,16229K
Gloucester City Council,23UE,Allotments,HI104,Water Supply,3400,AQUAFUND SERVICE CHARGES,20/04/2016,417637,255.39,NET,Advanced Demand Side Management Ltd,16229K
Gloucester City Council,23UE,Allotments,HI104,Water Supply,3400,SERVICE CHARGES,20/04/2016,417631,49.45,NET,Advanced Demand Side Management Ltd,16229K
Gloucester City Council,23UE,Bus Station,RB400,Water Supply,3400,aquafund agreement charges,20/04/2016,417628,263.9,NET,Advanced Demand Side Management Ltd,16229K
Gloucester City Council,23UE,Bus Station,RB400,Water Supply,3400,AQUAFUND AGREEMENT CHARGES,20/04/2016,417632,0.32,NET,Advanced Demand Side Management Ltd,16229K
Gloucester City Council,23UE,Bus Station,RB400,Water Supply,3400,AQUAFUND SERVICE CHARGES,20/04/2016,417634,0.36,NET,Advanced Demand Side Management Ltd,16229K
Gloucester City Council,23UE,Bus Station,RB400,Water Supply,3400,AQUAFUND SERVICE CHARGES,20/04/2016,417636,0.69,NET,Advanced Demand Side Management Ltd,16229K
Gloucester City Council,23UE,Bus Station,RB400,Water Supply,3400,AQUAFUND SERVICE CHARGES,20/04/2016,417637,1.41,NET,Advanced Demand Side Management Ltd,16229K
Gloucester City Council,23UE,Bus Station,RB400,Water Supply,3400,SERVICE CHARGES,20/04/2016,417631,0.35,NET,Advanced Demand Side Management Ltd,16229K
Gloucester City Council,23UE,City Museum And Art Gallery,LM200,Sewerage And Environ Charges,3402,CITY MUSUM JAN-MAR16,20/04/2016,416917,43.95,NET,Ocs Group Uk Limited T/A Cannon,06506A
Gloucester City Council,23UE,City Museum And Art Gallery,LM200,Water Supply,3400,aquafund agreement charges,20/04/2016,417628,4.74,NET,Advanced Demand Side Management Ltd,16229K
Gloucester City Council,23UE,City Museum And Art Gallery,LM200,Water Supply,3400,AQUAFUND AGREEMENT CHARGES,20/04/2016,417632,19.47,NET,Advanced Demand Side Management Ltd,16229K
Gloucester City Council,23UE,City Museum And Art Gallery,LM200,Water Supply,3400,AQUAFUND SERVICE CHARGES,20/04/2016,417634,1.13,NET,Advanced Demand Side Management Ltd,16229K
Gloucester City Council,23UE,City Museum And Art Gallery,LM200,Water Supply,3400,AQUAFUND SERVICE CHARGES,20/04/2016,417636,2.22,NET,Advanced Demand Side Management Ltd,16229K
Gloucester City Council,23UE,City Museum And Art Gallery,LM200,Water Supply,3400,AQUAFUND SERVICE CHARGES,20/04/2016,417637,0.58,NET,Advanced Demand Side Management Ltd,16229K
Gloucester City Council,23UE,City Museum And Art Gallery,LM200,Water Supply,3400,SERVICE CHARGES,20/04/2016,417631,1.13,NET,Advanced Demand Side Management Ltd,16229K
Gloucester City Council,23UE,Corporate Reporting /Financing,RC504,Fees For Services Received,5350,Childcare Vouchers,20/04/2016,417327,43.55,NET,Wider Plan Ltd ( Formerly Kiddivouchers),07893B
Gloucester City Council,23UE,Council Streetcare Team,HI101,Water Supply,3400,aquafund agreement charges,20/04/2016,417628,9.23,NET,Advanced Demand Side Management Ltd,16229K
Gloucester City Council,23UE,Council Streetcare Team,HI101,Water Supply,3400,AQUAFUND AGREEMENT CHARGES,20/04/2016,417632,9.73,NET,Advanced Demand Side Management Ltd,16229K
Gloucester City Council,23UE,Council Streetcare Team,HI101,Water Supply,3400,AQUAFUND SERVICE CHARGES,20/04/2016,417634,10.39,NET,Advanced Demand Side Management Ltd,16229K
Gloucester City Council,23UE,Council Streetcare Team,HI101,Water Supply,3400,AQUAFUND SERVICE CHARGES,20/04/2016,417636,20.44,NET,Advanced Demand Side Management Ltd,16229K
Gloucester City Council,23UE,Council Streetcare Team,HI101,Water Supply,3400,AQUAFUND SERVICE CHARGES,20/04/2016,417637,41.91,NET,Advanced Demand Side Management Ltd,16229K
Gloucester City Council,23UE,Council Streetcare Team,HI101,Water Supply,3400,SERVICE CHARGES,20/04/2016,417631,10.38,NET,Advanced Demand Side Management Ltd,16229K
Gloucester City Council,23UE,Countryside Unit,LP201,Water Supply,3400,aquafund agreement charges,20/04/2016,417628,40.03,NET,Advanced Demand Side Management Ltd,16229K
Gloucester City Council,23UE,Countryside Unit,LP201,Water Supply,3400,AQUAFUND AGREEMENT CHARGES,20/04/2016,417632,37.46,NET,Advanced Demand Side Management Ltd,16229K
Gloucester City Council,23UE,Countryside Unit,LP201,Water Supply,3400,AQUAFUND SERVICE CHARGES,20/04/2016,417634,40.04,NET,Advanced Demand Side Management Ltd,16229K
Gloucester City Council,23UE,Countryside Unit,LP201,Water Supply,3400,AQUAFUND SERVICE CHARGES,20/04/2016,417636,77.36,NET,Advanced Demand Side Management Ltd,16229K
Gloucester City Council,23UE,Countryside Unit,LP201,Water Supply,3400,SERVICE CHARGES,20/04/2016,417631,40.04,NET,Advanced Demand Side Management Ltd,16229K
Gloucester City Council,23UE,Docks Complex - Services,RB100,Water Supply,3400,AQUAFUND SERVICE CHARGES,20/04/2016,417634,-6.89,NET,Advanced Demand Side Management Ltd,16229K
Gloucester City Council,23UE,Docks Complex - Services,RB100,Water Supply,3400,AQUAFUND SERVICE CHARGES,20/04/2016,417636,-18.73,NET,Advanced Demand Side Management Ltd,16229K
Gloucester City Council,23UE,Docks Complex - Services,RB100,Water Supply,3400,AQUAFUND SERVICE CHARGES,20/04/2016,417637,25.62,NET,Advanced Demand Side Management Ltd,16229K
Gloucester City Council,23UE,Economic Development,FP300,Business Grant,7116,broadband voucher,20/04/2016,417670,399,NET,Pinnacle Telecom (Wales) Ltd,16402W
Gloucester City Council,23UE,Flex Replacement,LY160,It Hardware,42,22 touch monitor,20/04/2016,417326,900,CAP,Dell Computers Corporation Ltd,55920C
Gloucester City Council,23UE,Folk Museum,LM210,Water Supply,3400,aquafund agreement charges,20/04/2016,417628,3.8,NET,Advanced Demand Side Management Ltd,16229K
Gloucester City Council,23UE,Folk Museum,LM210,Water Supply,3400,AQUAFUND AGREEMENT CHARGES,20/04/2016,417632,3.55,NET,Advanced Demand Side Management Ltd,16229K
Gloucester City Council,23UE,Folk Museum,LM210,Water Supply,3400,AQUAFUND SERVICE CHARGES,20/04/2016,417634,2.33,NET,Advanced Demand Side Management Ltd,16229K
Gloucester City Council,23UE,Folk Museum,LM210,Water Supply,3400,AQUAFUND SERVICE CHARGES,20/04/2016,417636,2.75,NET,Advanced Demand Side Management Ltd,16229K
Gloucester City Council,23UE,Folk Museum,LM210,Water Supply,3400,SERVICE CHARGES,20/04/2016,417631,8.89,NET,Advanced Demand Side Management Ltd,16229K
Gloucester City Council,23UE,Gl1 Emergency Works,RY160,Contract Payments,20,Rental of Shed,20/04/2016,417267,1500,CAP,REDACTED,REDACTED
Gloucester City Council,23UE,Gloucester Guildhall,LA100,Water Supply,3400,aquafund agreement charges,20/04/2016,417628,7.83,NET,Advanced Demand Side Management Ltd,16229K
Gloucester City Council,23UE,Gloucester Guildhall,LA100,Water Supply,3400,AQUAFUND AGREEMENT CHARGES,20/04/2016,417632,46.03,NET,Advanced Demand Side Management Ltd,16229K
Gloucester City Council,23UE,Gloucester Guildhall,LA100,Water Supply,3400,AQUAFUND SERVICE CHARGES,20/04/2016,417636,-8.58,NET,Advanced Demand Side Management Ltd,16229K
Gloucester City Council,23UE,Gloucester Guildhall,LA100,Water Supply,3400,AQUAFUND SERVICE CHARGES,20/04/2016,417637,8.58,NET,Advanced Demand Side Management Ltd,16229K
Gloucester City Council,23UE,Grants To Voluntary Sector,FG100,Members Allocation Fund,7100F,Grants Unit,20/04/2016,417330,384,NET,Greenfields Garden Services Ltd,48130G
Gloucester City Council,23UE,Investment Property,RB500,Water Supply,3400,aquafund agreement charges,20/04/2016,417628,49.7,NET,Advanced Demand Side Management Ltd,16229K
Gloucester City Council,23UE,Investment Property,RB500,Water Supply,3400,AQUAFUND AGREEMENT CHARGES,20/04/2016,417629,6185.06,NET,Advanced Demand Side Management Ltd,16229K
Gloucester City Council,23UE,Investment Property,RB500,Water Supply,3400,AQUAFUND AGREEMENT CHARGES,20/04/2016,417630,63.27,NET,Advanced Demand Side Management Ltd,16229K
Gloucester City Council,23UE,Investment Property,RB500,Water Supply,3400,AQUAFUND AGREEMENT CHARGES,20/04/2016,417632,46.5,NET,Advanced Demand Side Management Ltd,16229K
Gloucester City Council,23UE,Investment Property,RB500,Water Supply,3400,AQUAFUND SERVICE CHARGES,20/04/2016,417634,16.03,NET,Advanced Demand Side Management Ltd,16229K
Gloucester City Council,23UE,Investment Property,RB500,Water Supply,3400,AQUAFUND SERVICE CHARGES,20/04/2016,417635,1362.07,NET,Advanced Demand Side Management Ltd,16229K
Gloucester City Council,23UE,Investment Property,RB500,Water Supply,3400,AQUAFUND SERVICE CHARGES,20/04/2016,417636,31.55,NET,Advanced Demand Side Management Ltd,16229K
Gloucester City Council,23UE,Investment Property,RB500,Water Supply,3400,AQUAFUND SERVICE CHARGES,20/04/2016,417637,57.07,NET,Advanced Demand Side Management Ltd,16229K
Gloucester City Council,23UE,Investment Property,RB500,Water Supply,3400,SERVICE CHARGES,20/04/2016,417631,156.13,NET,Advanced Demand Side Management Ltd,16229K
Gloucester City Council,23UE,Off Street Car Parks,PP110,Water Supply,3400,AQUAFUND AGREEMENT CHARGES,20/04/2016,417629,12.82,NET,Advanced Demand Side Management Ltd,16229K
Gloucester City Council,23UE,Off Street Car Parks,PP110,Water Supply,3400,AQUAFUND AGREEMENT CHARGES,20/04/2016,417630,12.82,NET,Advanced Demand Side Management Ltd,16229K
Gloucester City Council,23UE,Public Conveniences (Client),HI400,Water Supply,3400,aquafund agreement charges,20/04/2016,417628,10.48,NET,Advanced Demand Side Management Ltd,16229K
Gloucester City Council,23UE,Public Conveniences (Client),HI400,Water Supply,3400,AQUAFUND AGREEMENT CHARGES,20/04/2016,417629,86,NET,Advanced Demand Side Management Ltd,16229K
Gloucester City Council,23UE,Public Conveniences (Client),HI400,Water Supply,3400,AQUAFUND AGREEMENT CHARGES,20/04/2016,417630,86,NET,Advanced Demand Side Management Ltd,16229K
Gloucester City Council,23UE,Public Conveniences (Client),HI400,Water Supply,3400,AQUAFUND AGREEMENT CHARGES,20/04/2016,417632,48.41,NET,Advanced Demand Side Management Ltd,16229K
Gloucester City Council,23UE,Public Conveniences (Client),HI400,Water Supply,3400,AQUAFUND SERVICE CHARGES,20/04/2016,417634,1,NET,Advanced Demand Side Management Ltd,16229K
Gloucester City Council,23UE,Public Conveniences (Client),HI400,Water Supply,3400,AQUAFUND SERVICE CHARGES,20/04/2016,417635,3285.91,NET,Advanced Demand Side Management Ltd,16229K
Gloucester City Council,23UE,Public Conveniences (Client),HI400,Water Supply,3400,AQUAFUND SERVICE CHARGES,20/04/2016,417636,1.97,NET,Advanced Demand Side Management Ltd,16229K
Gloucester City Council,23UE,Public Conveniences (Client),HI400,Water Supply,3400,AQUAFUND SERVICE CHARGES,20/04/2016,417637,4.04,NET,Advanced Demand Side Management Ltd,16229K
Gloucester City Council,23UE,Public Conveniences (Client),HI400,Water Supply,3400,SERVICE CHARGES,20/04/2016,417631,1.01,NET,Advanced Demand Side Management Ltd,16229K
Gloucester City Council,23UE,Retail Market - Landlord,HM300,Subscriptions,5600,MARKETS SUBSCRIPTION 2016/17,20/04/2016,416883,636,NET,Nabma,47998L
Gloucester City Council,23UE,Shopmobility,PE200,Water Supply,3400,AQUAFUND AGREEMENT CHARGES,20/04/2016,417632,-1.76,NET,Advanced Demand Side Management Ltd,16229K
Gloucester City Council,23UE,Shopmobility,PE200,Water Supply,3400,AQUAFUND SERVICE CHARGES,20/04/2016,417634,0.23,NET,Advanced Demand Side Management Ltd,16229K
Gloucester City Council,23UE,Shopmobility,PE200,Water Supply,3400,AQUAFUND SERVICE CHARGES,20/04/2016,417636,0.43,NET,Advanced Demand Side Management Ltd,16229K
Gloucester City Council,23UE,Shopmobility,PE200,Water Supply,3400,AQUAFUND SERVICE CHARGES,20/04/2016,417637,0.89,NET,Advanced Demand Side Management Ltd,16229K
Gloucester City Council,23UE,Shopmobility,PE200,Water Supply,3400,SERVICE CHARGES,20/04/2016,417631,0.21,NET,Advanced Demand Side Management Ltd,16229K
Gloucester City Council,23UE,Tourism Marketing,LT100,Water Supply,3400,AQUAFUND AGREEMENT CHARGES,20/04/2016,417632,-3.48,NET,Advanced Demand Side Management Ltd,16229K
Gloucester City Council,23UE,Tourism Marketing,LT100,Water Supply,3400,AQUAFUND SERVICE CHARGES,20/04/2016,417634,0.56,NET,Advanced Demand Side Management Ltd,16229K
Gloucester City Council,23UE,Tourism Marketing,LT100,Water Supply,3400,AQUAFUND SERVICE CHARGES,20/04/2016,417636,1.1,NET,Advanced Demand Side Management Ltd,16229K
Gloucester City Council,23UE,Tourism Marketing,LT100,Water Supply,3400,AQUAFUND SERVICE CHARGES,20/04/2016,417637,1.26,NET,Advanced Demand Side Management Ltd,16229K
Gloucester City Council,23UE,Tourism Marketing,LT100,Water Supply,3400,SERVICE CHARGES,20/04/2016,417631,0.56,NET,Advanced Demand Side Management Ltd,16229K
Gloucester City Council,23UE,Cemeteries,HC300,Vocational Training,2970,ICCM membership 3274,21/04/2016,417694,90,NET,Institute Of Cemetery & Crematorium M'Ment,01116T
Gloucester City Council,23UE,City Museum,RY153,Contract Payments,20,Eastgate car park works less retention,21/04/2016,417707,236253.03,CAP,Universal Sealants (Uk) Ltd,15743Z
Gloucester City Council,23UE,Crematorium,HC200,National Assist Act Burial Exp,5593,professional charges ,21/04/2016,417699,809,NET,Selim Smith & Co Funeral Directors,15156X
Gloucester City Council,23UE,Folk Museum,LM210,Security Services Fees,5351,call out 1/2/16,21/04/2016,417702,31,NET,Glevum Security Ltd,03249B
Gloucester City Council,23UE,Guildhall Bar And Caf�,LA210,Catering Provisions -Food,5110,coffee,21/04/2016,417703,1.76,NET,Ethical Addictions Ltd,11654N
Gloucester City Council,23UE,Guildhall Bar And Caf�,LA210,Catering Provisions -Food,5110,food,21/04/2016,417688,132.38,NET,Woodward Foodservice,10714F
Gloucester City Council,23UE,Guildhall Bar And Caf�,LA210,Catering Provisions -Food,5110,food,21/04/2016,417689,111.56,NET,Woody'S Fruit & Veg,11798L
Gloucester City Council,23UE,Guildhall Bar And Caf�,LA210,Catering Provisions -Food,5110,food,21/04/2016,417690,161.17,NET,Woodward Foodservice,10714F
Gloucester City Council,23UE,Guildhall Bar And Caf�,LA210,Catering Provisions -Food,5110,food,21/04/2016,417705,27.7,NET,Janes Pantry,24500W
Gloucester City Council,23UE,Guildhall Bar And Caf�,LA210,Catering Provisions -Liquor,5111,Gloucester Gold for resale,21/04/2016,417704,114,NET,Gloucester Brewery,13373F
Gloucester City Council,23UE,Guildhall Bar And Caf�,LA210,Hire Of Equipment,5020,stock audit 31/3/16,21/04/2016,417700,90,NET,Fea Audits,08888J
Gloucester City Council,23UE,REDACTED,REDACTED,REDACTED,REDACTED,REDACTED,21/04/2016,REDACTED,1429.33,NET,REDACTED,REDACTED
Gloucester City Council,23UE,REDACTED,REDACTED,REDACTED,REDACTED,REDACTED,21/04/2016,REDACTED,550,NET,REDACTED,REDACTED
Gloucester City Council,23UE,REDACTED,REDACTED,REDACTED,REDACTED,REDACTED,21/04/2016,REDACTED,697,NET,REDACTED,REDACTED
Gloucester City Council,23UE,REDACTED,REDACTED,REDACTED,REDACTED,REDACTED,21/04/2016,REDACTED,450,NET,REDACTED,REDACTED
Gloucester City Council,23UE,Nms Contract,HI102,Fees For Services Received,5350,sharps collection & disposal service,21/04/2016,417692,4032,NET,Gloucestershire County Council,18650D
Gloucester City Council,23UE,Off Street Car Parks,PP110,Buildings Insurance,3800,Insurance 2016,21/04/2016,414297,68.6,NET,Workman Llp,11021M
Gloucester City Council,23UE,Off Street Car Parks,PP110,Buildings Insurance,3800,Insurance 2016,21/04/2016,414517,532.61,NET,Workman Llp,11021M
Gloucester City Council,23UE,Off Street Car Parks,PP110,Rents,3200,Car park office RIA & SC MAR-JUN16,21/04/2016,417711,125,NET,Workman Llp,11021M
Gloucester City Council,23UE,Off Street Car Parks,PP110,Rents,3200,Car park service charge MAR-JUN16,21/04/2016,417710,63528.19,NET,Workman Llp,11021M
Gloucester City Council,23UE,Off Street Car Parks,PP110,Service Charges,3020,Car park office RIA & SC MAR-JUN16,21/04/2016,417711,245.1,NET,Workman Llp,11021M
Gloucester City Council,23UE,Off Street Car Parks,PP110,Service Charges,3020,Car park service charge MAR-JUN16,21/04/2016,417710,1927.71,NET,Workman Llp,11021M
Gloucester City Council,23UE,Off Street Car Parks,PP110,Service Charges,3020,pedestrian acess 9a Eastgate MAR-JUN16,21/04/2016,417709,908.78,NET,Workman Llp,11021M
Gloucester City Council,23UE,Retail Market - Landlord,HM300,Buildings Insurance,3800,MARKET INSURANCE,21/04/2016,408354,615.84,NET,Workman Llp,11021M
Gloucester City Council,23UE,The Arbor,HC501,Catering Provisions -Food,5110,food,21/04/2016,417706,95.54,NET,Janes Pantry,24500W
Gloucester City Council,23UE,The Arbor,HC501,Catering Provisions -Food,5110,Food w/e 03/04/2016,21/04/2016,417066,17.66,NET,Janes Pantry,24500W
Gloucester City Council,23UE,The Arbor,HC501,Catering Provisions -Food,5110,MONTHLY MACHINE WARRANTY,21/04/2016,416533,61.58,NET,Caffeica Ltd,11923J
Gloucester City Council,23UE,Business Transformation & Tech,RT700,Computer Hardware <5000,5420,Cable Modem User Charge Mar - Apr 16,22/04/2016,415994,33,NET,Virgin Media Payments Ltd,09376J
Gloucester City Council,23UE,Business Transformation & Tech,RT700,Internet Service Provider Fees,5429,Blueyonder Charges Mar - Apr 16,22/04/2016,415993,80,NET,Virgin Media Payments Ltd,09376J
Gloucester City Council,23UE,Business Transformation & Tech,RT700,Internet Service Provider Fees,5429,Charges Mar - Apr 2016,22/04/2016,416259,95.86,NET,Virgin Media Business,01869B
Gloucester City Council,23UE,Business Transformation & Tech,RT700,Mobile Phones,5409,acct 5500388 10x Galaxy A3 & 20x charger,22/04/2016,417770,1737.5,NET,O2 Uk,16206Y
Gloucester City Council,23UE,Business Transformation & Tech,RT700,Mobile Phones,5409,acct 5500388 Alcatel 2045 & Galaxy A3,22/04/2016,417771,523.28,NET,O2 Uk,16206Y
Gloucester City Council,23UE,Business Transformation & Tech,RT700,Mobile Phones,5409,acct 5500388 mobile phones & chargers,22/04/2016,417772,1818.8,NET,O2 Uk,16206Y
Gloucester City Council,23UE,Business Transformation & Tech,RT700,Mobile Phones,5409,call charges acct 5500385,22/04/2016,417773,427.27,NET,O2 Uk,16206Y
Gloucester City Council,23UE,Business Transformation & Tech,RT700,Mobile Phones,5409,Charges February 2016,22/04/2016,415946,915.09,NET,Everything Everywhere Ltd (T-Mobile),57543S
Gloucester City Council,23UE,Business Transformation & Tech,RT700,Telephones And Fax,5410,Line Rental Mar - Apr 16,22/04/2016,415995,16.99,NET,Virgin Media Payments Ltd,09376J
Gloucester City Council,23UE,Client Revs & Bens Contract,RT240,Fees For Services Received,5350,Annual Professional Indemnity Insurance,22/04/2016,417319,6989.43,NET,Gemini Consultants Ltd,52177U
Gloucester City Council,23UE,REDACTED,REDACTED,REDACTED,REDACTED,REDACTED,22/04/2016,REDACTED,2660,NET,REDACTED,REDACTED
Gloucester City Council,23UE,REDACTED,REDACTED,REDACTED,REDACTED,REDACTED,22/04/2016,REDACTED,360,NET,REDACTED,REDACTED
Gloucester City Council,23UE,REDACTED,REDACTED,REDACTED,REDACTED,REDACTED,22/04/2016,REDACTED,260,NET,REDACTED,REDACTED
Gloucester City Council,23UE,REDACTED,REDACTED,REDACTED,REDACTED,REDACTED,22/04/2016,REDACTED,424.23,NET,REDACTED,REDACTED
Gloucester City Council,23UE,REDACTED,REDACTED,REDACTED,REDACTED,REDACTED,22/04/2016,REDACTED,630,NET,REDACTED,REDACTED
Gloucester City Council,23UE,Members Support,RC300,Operational Equipment <5000,5012,engraved name plates,22/04/2016,417738,70,NET,The Gloucester Cobbler,10005X
Gloucester City Council,23UE,Nms Contract,HI102,Contracted Services,6970,Resource Delivery 2015 adoption,22/04/2016,417095,56653.07,NET,Enterprise (Aol) Ltd,06695G
Gloucester City Council,23UE,Nms Contract,HI102,Fees For Services Received,5350,Vehicle Adaptions,22/04/2016,417096,24750,NET,Enterprise (Aol) Ltd,06695G
Gloucester City Council,23UE,Retail Market - Landlord,HM300,Maintenance Of Equipment,5030,repairs,22/04/2016,417316,216,NET,Pakawaste Ltd,02969S
Gloucester City Council,23UE,Unallocated It,RY525,It Hardware,42,upgrade for Dell Optiplex 755 S,22/04/2016,417691,2464,CAP,Micron Consumer Products Group,16428B
Gloucester City Council,23UE,Vehicles,RS140,Fuel,4012,FUEL,22/04/2016,416871,158.59,NET,Allstar Business Solutions Ltd (Arval),06594A
Gloucester City Council,23UE,Blackfriars,LA609,Furniture,5000,stacking chairs,25/04/2016,417836,44.95,NET,Strictly Tables & Chairs Ltd,15573A
Gloucester City Council,23UE,Blackfriars,LA609,Hire Of Equipment,5020,glassware hire 1/4-4/4/16,25/04/2016,417869,135,NET,Gloucester Event Hire,56935D
Gloucester City Council,23UE,Blackfriars Weddings,LA220,Hire Of Equipment,5020,re breakages 4/4/16,25/04/2016,417868,17.5,NET,Gloucester Event Hire,56935D
Gloucester City Council,23UE,Business Transformation & Tech,RT700,Fees For Services Received,5350,Govmetric NOV15-NOV16,25/04/2016,417859,4825,NET,Rol Solutions Ltd T/A Govmetric,14158C
Gloucester City Council,23UE,Business Transformation & Tech,RT700,Mobile Phones,5409,call charges acct 5500385,25/04/2016,417774,523.2,NET,O2 Uk,16206Y
Gloucester City Council,23UE,City Museum And Art Gallery,LM200,Advertising And Publicity,5702,Museums APR-JUN16 guide,25/04/2016,417845,373.5,NET,Glide Media,58829J
Gloucester City Council,23UE,City Museum And Art Gallery,LM200,Exhibits And Collections,5038,clothing,25/04/2016,417865,425,NET,Cloak'D & Dagger'D,16207W
Gloucester City Council,23UE,City Museum And Art Gallery,LM200,Other Minor Supplies Services,5590,clothing,25/04/2016,417866,955,NET,Cloak'D & Dagger'D,16207W
Gloucester City Council,23UE,Client Revs & Bens Contract,RT240,Bailiffs Fees,5368,VAT only invoice,25/04/2016,417697,0,NET,Phoenix Commercial Collections Ltd,13435J
Gloucester City Council,23UE,Client Revs & Bens Contract,RT240,Bailiffs Fees,5368,VAT only invoice,25/04/2016,417698,0,NET,Phoenix Commercial Collections Ltd,13435J
Gloucester City Council,23UE,Client Revs & Bens Contract,RT240,Bailiffs Fees,5368,VAT only invoice,25/04/2016,417863,0,NET,Bristow & Sutor,05450M
Gloucester City Council,23UE,Contact Centre,RB300,Operational Equipment <5000,5012,catering urn,25/04/2016,417830,53.99,NET,Lyreco Uk Ltd,11746G
Gloucester City Council,23UE,Contact Centre,RB300,Operational Equipment <5000,5012,kettle,25/04/2016,417831,11.62,NET,Lyreco Uk Ltd,11746G
Gloucester City Council,23UE,Contact Centre,RB300,Publications,5060,newspapers MAR16,25/04/2016,417835,162.25,NET,Ymk Supermarket,55281U
Gloucester City Council,23UE,Contact Centre,RB300,Stationery,5302,stapler & staples,25/04/2016,417833,101.68,NET,Lyreco Uk Ltd,11746G
Gloucester City Council,23UE,Contact Centre,RB300,Stationery,5302,stationery,25/04/2016,417822,1.09,NET,Lyreco Uk Ltd,11746G
Gloucester City Council,23UE,Contact Centre,RB300,Stationery,5302,stationery,25/04/2016,417823,167.52,NET,Lyreco Uk Ltd,11746G
Gloucester City Council,23UE,Contact Centre,RB300,Stationery,5302,stationery,25/04/2016,417832,486.37,NET,Lyreco Uk Ltd,11746G
Gloucester City Council,23UE,Contact Centre,RB300,Stationery,5302,Xerox plotter,25/04/2016,417840,55.97,NET,Stanford Marsh Ltd,51139M
Gloucester City Council,23UE,Development Management,PT200,Advertising And Publicity,5702,advert 14/4/16,25/04/2016,417853,175.3,NET,Local World Ltd,08556P
Gloucester City Council,23UE,Development Management,PT200,Advertising And Publicity,5702,adverts 7/4/16,25/04/2016,417889,204.51,NET,Local World Ltd,08556P
Gloucester City Council,23UE,Folk Museum,LM210,Advertising And Publicity,5702,Museums APR-JUN16 guide,25/04/2016,417845,373.5,NET,Glide Media,58829J
Gloucester City Council,23UE,Grants To Voluntary Sector,FG100,Members Allocation Fund,7100F,"Concept art, Mural installation",25/04/2016,417864,720,NET,Spzero76,16440M
Gloucester City Council,23UE,Grants To Voluntary Sector,FG100,Members Allocation Fund,7100F,Members fund grant - Smith,25/04/2016,417891,1000,NET,The Venture: White City,10402E
Gloucester City Council,23UE,Human Resources,EH100,Fees For Services Received,5350,EHO external advert,25/04/2016,417736,800.11,NET,Gloucestershire County Council,18650D
Gloucester City Council,23UE,Investment Property,RB500,Consultants Fees,5349,Alma Terrace garages,25/04/2016,417841,500,NET,Alder King,02367D
Gloucester City Council,23UE,Managing Director,RE100,Fees For Services Received,5350,recruitment assessment centre & services,25/04/2016,417735,19950.8,NET,Gloucestershire County Council,18650D
Gloucester City Council,23UE,Nms Contract,HI102,Fees For Services Received,5350,nitrile gloves,25/04/2016,417827,39.8,NET,Safpro Industrial Supply Co,39190W
Gloucester City Council,23UE,Planning Policy & Heritage,PT300,Fees For Services Received,5350,Gloucester City floodingg plan,25/04/2016,417842,3990,NET,Atkins Ltd,15760Z
Gloucester City Council,23UE,Retail Market - Landlord,HM300,Sewerage And Environ Charges,3402,Eastgate market works 4/4/16,25/04/2016,417843,180,NET,Eezeeflow Drain Services,11587C
Gloucester City Council,23UE,Safer Stronger Communities,FP841,Other Minor Supplies Services,5590,cable ties,25/04/2016,417817,28.01,NET,Edmundson Electrical Ltd,13990Y
Gloucester City Council,23UE,Safer Stronger Communities,FP841,Other Minor Supplies Services,5590,Safergloucester.co.uk renewal,25/04/2016,417846,80,NET,Icon.Net,52505Z
Gloucester City Council,23UE,Tic Trading,LT110,Materials For Sale,5080,christmas cards for resale,25/04/2016,417848,157.2,NET,James Hopkins Trust,49394H
Gloucester City Council,23UE,Tourism Marketing,LT100,Window Cleaning,3610,FEB-MAR16 window cleaning,25/04/2016,417851,24,NET,Interserve Fs (Uk) Limited,00442K
Gloucester City Council,23UE,Building Control,PT400,Fees For Services Received,5350, Advertising Building Control Vacancy,26/04/2016,417079,850,NET,Stroud District Council,42500D
Gloucester City Council,23UE,City Museum Catering,LM202,Catering Provisions -Food,5110,coffee,26/04/2016,414427,84.5,NET,James Gourmet Coffee Co.,55049A
Gloucester City Council,23UE,City Museum Catering,LM202,Catering Provisions -Food,5110,Food,26/04/2016,416005,4.4,NET,Total Produce Gloucester,12645E
Gloucester City Council,23UE,City Museum Catering,LM202,Catering Provisions -Food,5110,Food,26/04/2016,416006,4.76,NET,Total Produce Gloucester,12645E
Gloucester City Council,23UE,City Museum Catering,LM202,Catering Provisions -Food,5110,Food Dec 15 & Jan 16,26/04/2016,416003,37.66,NET,Woody'S Fruit & Veg,11798L
Gloucester City Council,23UE,City Museum Catering,LM202,Catering Provisions -Food,5110,Milk,26/04/2016,416004,6.6,NET,Total Produce Gloucester,12645E
Gloucester City Council,23UE,City Museum Catering,LM202,Catering Provisions -Food,5110,Milk,26/04/2016,416007,2.2,NET,Total Produce Gloucester,12645E
Gloucester City Council,23UE,City Museum Catering,LM202,Catering Provisions -Food,5110,Milk,26/04/2016,416008,7.14,NET,Total Produce Gloucester,12645E
Gloucester City Council,23UE,City Museum Catering,LM202,Catering Provisions -Food,5110,Milk,26/04/2016,416009,4.76,NET,Total Produce Gloucester,12645E
Gloucester City Council,23UE,City Museum Catering,LM202,Catering Provisions -Food,5110,Milk,26/04/2016,416010,4.76,NET,Total Produce Gloucester,12645E
Gloucester City Council,23UE,City Museum Catering,LM202,Catering Provisions -Food,5110,Milk,26/04/2016,416011,7.14,NET,Total Produce Gloucester,12645E
Gloucester City Council,23UE,City Museum Catering,LM202,Catering Provisions -Food,5110,Milk,26/04/2016,416012,4.76,NET,Total Produce Gloucester,12645E
Gloucester City Council,23UE,City Museum Catering,LM202,Catering Provisions -Food,5110,Milk,26/04/2016,416013,4.76,NET,Total Produce Gloucester,12645E
Gloucester City Council,23UE,City Museum Catering,LM202,Catering Provisions -Food,5110,Milk,26/04/2016,416014,7.14,NET,Total Produce Gloucester,12645E
Gloucester City Council,23UE,Client Revs & Bens Contract,RT240,Bailiffs Fees,5368,JAN-FEB16 Dukes Direct payment,26/04/2016,417486,4898.9,NET,Civica Uk Ltd,10841X
Gloucester City Council,23UE,Client Revs & Bens Contract,RT240,Bailiffs Fees,5368,March 2016 Dukes Direct,26/04/2016,417487,3596.68,NET,Civica Uk Ltd,10841X
Gloucester City Council,23UE,REDACTED,REDACTED,REDACTED,REDACTED,REDACTED,26/04/2016,REDACTED,7000,NET,REDACTED,REDACTED
Gloucester City Council,23UE,General Drainage Works,PY241,Contract Payments,20,Porchester Rd works,26/04/2016,417821,1475,CAP,Rj Contracting (Environmental) Ltd,07429H
Gloucester City Council,23UE,REDACTED,REDACTED,REDACTED,REDACTED,REDACTED,26/04/2016,REDACTED,368.2,NET,REDACTED,REDACTED
Gloucester City Council,23UE,Homelessness Prevention,CH122,Basic Pay - Temporary Staff,2751,Temporary staff w/e 10/4/16,26/04/2016,417873,830.79,NET,James Andrews Recruitment Solutions,13636W
Gloucester City Council,23UE,REDACTED,REDACTED,REDACTED,REDACTED,REDACTED,26/04/2016,REDACTED,530,NET,REDACTED,REDACTED
Gloucester City Council,23UE,REDACTED,REDACTED,REDACTED,REDACTED,REDACTED,26/04/2016,REDACTED,425,NET,REDACTED,REDACTED
Gloucester City Council,23UE,Investment Property,RB500,General Repair/Maint Buildings,3000,Chase lane yard works,26/04/2016,417867,490,NET,Mpl Wrought Iron Llp,03907P
Gloucester City Council,23UE,Kings Quarter,RY146,Contract Payments,20,Bus station works,26/04/2016,417894,150,CAP,Mpl Wrought Iron Llp,03907P
Gloucester City Council,23UE,Blackfriars,LA609,Catering Provisions -Liquor,5111,drinks,27/04/2016,418006,375.99,NET,Cellar Supplies Cheltenham Ltd,01563L
Gloucester City Council,23UE,Blackfriars Weddings,LA220,Catering Provisions -Liquor,5111,drinks,27/04/2016,417993,168.61,NET,Cellar Supplies Cheltenham Ltd,01563L
Gloucester City Council,23UE,Business Transformation & Tech,RT700,Computer Hardware <5000,5420,CCN024 part 3 desktop refresh - laptops,27/04/2016,417838,25427.82,NET,Civica Uk Ltd,10841X
Gloucester City Council,23UE,Business Transformation & Tech,RT700,Computer Software Maintenance,5427,Uniform upgrade,27/04/2016,418010,1900,NET,Idox Group,07229U
Gloucester City Council,23UE,Business Transformation & Tech,RT700,Security Testing - Govt Connec,5446,PCI scoping survey,27/04/2016,417948,2750,NET,Ncc Group Security Services Ltd,15823M
Gloucester City Council,23UE,Cemeteries,HC300,Burial Rights,9324,refund of gravespace D806 fee,27/04/2016,417941,11,NET,Davey Law Limited,13404W
Gloucester City Council,23UE,Cemeteries,HC300,Vocational Training,2970,ICCM education modules,27/04/2016,417966,435,NET,Institute Of Cemetery & Crematorium M'Ment,01116T
Gloucester City Council,23UE,City Museum And Art Gallery,LM200,Events,5952,beginners class 19/3/16,27/04/2016,417892,144,NET,Bohemian Beads,16445B
Gloucester City Council,23UE,City Museum And Art Gallery,LM200,Printing,5300,museums signage,27/04/2016,417890,1940,NET,Alpha Colour Printers Ltd,00945B
Gloucester City Council,23UE,City Museum Catering,LM202,Catering Provisions -Food,5110,milk,27/04/2016,418025,4.76,NET,Total Produce Gloucester,12645E
Gloucester City Council,23UE,City Museum Catering,LM202,Catering Provisions -Food,5110,milk,27/04/2016,418026,7.14,NET,Total Produce Gloucester,12645E
Gloucester City Council,23UE,City Museum Catering,LM202,Catering Provisions -Food,5110,milk,27/04/2016,418027,2.36,NET,Total Produce Gloucester,12645E
Gloucester City Council,23UE,City Museum Catering,LM202,Catering Provisions -Food,5110,milk,27/04/2016,418028,2.38,NET,Total Produce Gloucester,12645E
Gloucester City Council,23UE,City Museum Catering,LM202,Catering Provisions -Food,5110,milk,27/04/2016,418029,4.76,NET,Total Produce Gloucester,12645E
Gloucester City Council,23UE,City Museum Catering,LM202,Catering Provisions -Food,5110,milk,27/04/2016,418030,2.38,NET,Total Produce Gloucester,12645E
Gloucester City Council,23UE,City Museum Catering,LM202,Catering Provisions -Food,5110,milk,27/04/2016,418031,7.14,NET,Total Produce Gloucester,12645E
Gloucester City Council,23UE,City Museum Catering,LM202,Catering Provisions -Food,5110,milk,27/04/2016,418032,4.76,NET,Total Produce Gloucester,12645E
Gloucester City Council,23UE,City Museum Catering,LM202,Catering Provisions -Food,5110,milk,27/04/2016,418033,7.14,NET,Total Produce Gloucester,12645E
Gloucester City Council,23UE,City Museum Catering,LM202,Catering Provisions -Food,5110,milk,27/04/2016,418034,2.38,NET,Total Produce Gloucester,12645E
Gloucester City Council,23UE,City Museum Catering,LM202,Catering Provisions -Food,5110,milk,27/04/2016,418035,4.76,NET,Total Produce Gloucester,12645E
Gloucester City Council,23UE,City Museum Catering,LM202,Catering Provisions -Food,5110,milk,27/04/2016,418036,4.76,NET,Total Produce Gloucester,12645E
Gloucester City Council,23UE,City Museum Catering,LM202,Catering Provisions -Food,5110,milk,27/04/2016,418037,7.14,NET,Total Produce Gloucester,12645E
Gloucester City Council,23UE,City Museum Catering,LM202,Catering Provisions -Food,5110,milk,27/04/2016,418038,4.76,NET,Total Produce Gloucester,12645E
Gloucester City Council,23UE,Civica Contract Revs & Bens,RT250,Contracted Services,6970,Pension excess charges MAR16,27/04/2016,417839,12134.09,NET,Civica Uk Ltd,10841X
Gloucester City Council,23UE,Civica It Contract,RT270,Fees For Services Received,5350,Pension charges MAR16,27/04/2016,417872,796.06,NET,Civica Uk Ltd,10841X
Gloucester City Council,23UE,Coll Fund Revenue Account,ZC100,County Council Precept,7460,precept payment due 18/05/16,27/04/2016,418081,4168751.7,NET,Gloucestershire County Council,18650D
Gloucester City Council,23UE,Coll Fund Revenue Account,ZC100,Nndr Central Share,7474,BRR pooling payment due 19/5/16,27/04/2016,418080,478105,NET,Gloucestershire County Council,18650D
Gloucester City Council,23UE,Coll Fund Revenue Account,ZC100,Nndr Central Share,7474,BRR pooling payment due 3/5/16,27/04/2016,418078,478105,NET,Gloucestershire County Council,18650D
Gloucester City Council,23UE,Coll Fund Revenue Account,ZC100,Nndr Tariff,7473,BRR pooling payment due 19/05/16,27/04/2016,418079,1497723,NET,Stroud District Council,74737T
Gloucester City Council,23UE,Coll Fund Revenue Account,ZC100,Nndr Tariff,7473,brr pooling payment due 3/05/16,27/04/2016,418077,1497723,NET,Stroud District Council,74737T
Gloucester City Council,23UE,Coll Fund Revenue Account,ZC100,Police Precept,7461,precept payment due 18/05/16,27/04/2016,418082,773478.2,NET,"Police & Crime Commissioner, Gloucestershire",49521B
Gloucester City Council,23UE,Financial Services,RT200,Fees For Services Received,5350,Financials implemetation costs 15/16,27/04/2016,417958,45062.06,NET,Malvern Hills District Council,57298F
Gloucester City Council,23UE,Financial Services,RT200,Subscriptions,5600,Finance Advisory Network 16-17,27/04/2016,417862,4270,NET,Cipfa Business Limited,09260F
Gloucester City Council,23UE,Flex Replacement,LY160,It Hardware,42,Dell 22 touch monitor,27/04/2016,417874,750,CAP,Dell Computers Corporation Ltd,55920C
Gloucester City Council,23UE,Guildhall Bar And Caf�,LA210,Catering Provisions -Liquor,5111,drinks,27/04/2016,417991,1254.56,NET,Cellar Supplies Cheltenham Ltd,01563L
Gloucester City Council,23UE,Guildhall Bar And Caf�,LA210,Hire Of Equipment,5020,flexi glasses,27/04/2016,417988,238,NET,Cotswold Vending Services Ltd,16454A
Gloucester City Council,23UE,Guildhall Bar And Caf�,LA210,Hire Of Equipment,5020,rippled cup,27/04/2016,417986,75,NET,Cotswold Vending Services Ltd,16454A
Gloucester City Council,23UE,Guildhall Bar And Caf�,LA210,Hire Of Equipment,5020,water cups & glasses,27/04/2016,417987,190,NET,Cotswold Vending Services Ltd,16454A
Gloucester City Council,23UE,REDACTED,REDACTED,REDACTED,REDACTED,REDACTED,27/04/2016,REDACTED,100,NET,REDACTED,REDACTED
Gloucester City Council,23UE,REDACTED,REDACTED,REDACTED,REDACTED,REDACTED,27/04/2016,REDACTED,181.86,NET,REDACTED,REDACTED
Gloucester City Council,23UE,REDACTED,REDACTED,REDACTED,REDACTED,REDACTED,27/04/2016,REDACTED,40,NET,REDACTED,REDACTED
Gloucester City Council,23UE,Hackney Carriages,HL100,Fees For Services Received,5350,DBS checks,27/04/2016,417086,616,NET,Disclosure And Barring Service,00119W
Gloucester City Council,23UE,Hackney Carriages,HL100,Fees For Services Received,5350,DVLA Electronic Check,27/04/2016,415826,79.75,NET,Intelligent Data Systems (Uk) Ltd,11067G
Gloucester City Council,23UE,Hackney Carriages,HL100,Fees For Services Received,5350,DVLA electronic checks,27/04/2016,417870,101.5,NET,Intelligent Data Systems (Uk) Ltd,11067G
Gloucester City Council,23UE,Head Of Financial Services,GO100,Vocational Training,2970,Local Govt finance conference 2016,27/04/2016,417997,390,NET,Cipfa Business Limited,09260F
Gloucester City Council,23UE,Head Of Regeneration & Eco Dev,GO102,Conference/Meeting Expenses,5510,Student Housing 2016 delegate,27/04/2016,417854,499,NET,London Development Events Ltd,16453C
Gloucester City Council,23UE,Homelessness,CH120,Basic Pay - Temporary Staff,2751,Temporary staff w/e 3/4/16,27/04/2016,417875,700.47,NET,James Andrews Recruitment Solutions,13636W
Gloucester City Council,23UE,Homelessness,CH120,Fees For Services Received,5350,medical reports,27/04/2016,417977,35,NET,Now Medical,03468L
Gloucester City Council,23UE,Homelessness,CH120,Fees For Services Received,5350,telephone interpreting,27/04/2016,418013,13.65,NET,Prime Production Ltd,06262F
Gloucester City Council,23UE,Homelessness,CH120,Removal And Storage Fees,5513,storage fees,27/04/2016,417967,78.21,NET,Advanced Removals & Storage Ltd,57142R
Gloucester City Council,23UE,Homelessness,CH120,Removal And Storage Fees,5513,storage fees,27/04/2016,417968,39.11,NET,Advanced Removals & Storage Ltd,57142R
Gloucester City Council,23UE,Homelessness,CH120,Removal And Storage Fees,5513,storage fees,27/04/2016,417978,78.21,NET,Advanced Removals & Storage Ltd,57142R
Gloucester City Council,23UE,Homelessness,CH120,Removal And Storage Fees,5513,storage fees,27/04/2016,417979,39.11,NET,Advanced Removals & Storage Ltd,57142R
Gloucester City Council,23UE,Homelessness,CH120,Removal And Storage Fees,5513,storage fees,27/04/2016,417985,78.21,NET,Advanced Removals & Storage Ltd,57142R
Gloucester City Council,23UE,Homelessness Prevention,CH122,Basic Pay - Temporary Staff,2751,Temp staff w/e 17/4/16,27/04/2016,417969,792.78,NET,James Andrews Recruitment Solutions,13636W
Gloucester City Council,23UE,Homelessness Prevention,CH122,Fees For Services Received,5350,medical reports,27/04/2016,417977,25,NET,Now Medical,03468L
Gloucester City Council,23UE,REDACTED,REDACTED,REDACTED,REDACTED,REDACTED,27/04/2016,REDACTED,400,NET,REDACTED,REDACTED
Gloucester City Council,23UE,REDACTED,REDACTED,REDACTED,REDACTED,REDACTED,27/04/2016,REDACTED,425,NET,REDACTED,REDACTED
Gloucester City Council,23UE,Housing Works In Default,HD500,Clearance And Cleansing Fees,5384,works at 5 Birch Ave,27/04/2016,417573,775,NET,Three Counties Drain Service,44033V
Gloucester City Council,23UE,Investment Property,RB500,Lift Maintenance,3051,Guildhall lift repairs,27/04/2016,417857,741.06,NET,Pickerings Europe Ltd,58816U
Gloucester City Council,23UE,Rehousing,CH111,Fees For Services Received,5350,medical reports,27/04/2016,417977,225,NET,Now Medical,03468L
Gloucester City Council,23UE,The Arbor,HC501,Catering Provisions -Food,5110,food,27/04/2016,417943,265.97,NET,Bidvest Foodservice (3663),55585U
Gloucester City Council,23UE,The Arbor,HC501,Catering Provisions -Food,5110,food,27/04/2016,417944,81.88,NET,Bidvest Foodservice (3663),55585U
Gloucester City Council,23UE,The Arbor,HC501,Catering Provisions -Food,5110,food,27/04/2016,417945,249.64,NET,Bidvest Foodservice (3663),55585U
Gloucester City Council,23UE,The Arbor,HC501,Catering Provisions -Food,5110,food,27/04/2016,417959,338.18,NET,Bidvest Foodservice (3663),55585U
Gloucester City Council,23UE,The Arbor,HC501,Catering Provisions -Food,5110,food,27/04/2016,417960,10.76,NET,Total Produce Gloucester,12645E
Gloucester City Council,23UE,The Arbor,HC501,Catering Provisions -Food,5110,food,27/04/2016,417961,8.8,NET,Total Produce Gloucester,12645E
Gloucester City Council,23UE,The Arbor,HC501,Catering Provisions -Food,5110,food,27/04/2016,417962,412.18,NET,Bidvest Foodservice (3663),55585U
Gloucester City Council,23UE,The Arbor,HC501,Catering Provisions -Food,5110,food,27/04/2016,418014,35.75,NET,Total Produce Gloucester,12645E
Gloucester City Council,23UE,The Arbor,HC501,Catering Provisions -Food,5110,food,27/04/2016,418015,22.12,NET,Total Produce Gloucester,12645E
Gloucester City Council,23UE,The Arbor,HC501,Catering Provisions -Food,5110,food,27/04/2016,418016,4.96,NET,Total Produce Gloucester,12645E
Gloucester City Council,23UE,The Arbor,HC501,Catering Provisions -Food,5110,food,27/04/2016,418017,13.49,NET,Total Produce Gloucester,12645E
Gloucester City Council,23UE,The Arbor,HC501,Catering Provisions -Food,5110,food,27/04/2016,418018,29.55,NET,Total Produce Gloucester,12645E
Gloucester City Council,23UE,The Arbor,HC501,Catering Provisions -Food,5110,food,27/04/2016,418019,25.48,NET,Total Produce Gloucester,12645E
Gloucester City Council,23UE,The Arbor,HC501,Catering Provisions -Food,5110,food,27/04/2016,418020,48.33,NET,Total Produce Gloucester,12645E
Gloucester City Council,23UE,The Arbor,HC501,Catering Provisions -Food,5110,food,27/04/2016,418021,37.84,NET,Total Produce Gloucester,12645E
Gloucester City Council,23UE,The Arbor,HC501,Catering Provisions -Food,5110,food,27/04/2016,418022,54.89,NET,Total Produce Gloucester,12645E
Gloucester City Council,23UE,The Arbor,HC501,Catering Provisions -Food,5110,food,27/04/2016,418023,34.01,NET,Total Produce Gloucester,12645E
Gloucester City Council,23UE,The Arbor,HC501,Catering Provisions -Food,5110,food,27/04/2016,418024,57.93,NET,Total Produce Gloucester,12645E
Gloucester City Council,23UE,The Arbor,HC501,Catering Provisions -Liquor,5111,drinks,27/04/2016,417989,90.44,NET,Cellar Supplies Cheltenham Ltd,01563L
Gloucester City Council,23UE,The Arbor,HC501,Catering Provisions -Liquor,5111,drinks,27/04/2016,417990,24.99,NET,Cellar Supplies Cheltenham Ltd,01563L
Gloucester City Council,23UE,The Arbor,HC501,Catering Provisions -Liquor,5111,drinks,27/04/2016,417992,142.58,NET,Cellar Supplies Cheltenham Ltd,01563L
Gloucester City Council,23UE,The Arbor,HC501,Maint Agreements - Buildings,3010,machine warranty,27/04/2016,417981,61.58,NET,Caffeica Ltd,11923J
Gloucester City Council,23UE,The Arbor,HC501,Operational Equipment <5000,5012,filter cartridges,27/04/2016,417994,68,NET,Space Catering Equipment Ltd,42828RV
Gloucester City Council,23UE,Townscape Heritage Initiative,LY145,Contract Payments,20,St Mary De Crypt phase 3,27/04/2016,417964,5760,CAP,Bourne Masonry,15013X
Gloucester City Council,23UE,Unallocated It,RY525,Contract Payments,20,CCN024 part 2 desktop refresh - desktops,27/04/2016,417837,44904.5,CAP,Civica Uk Ltd,10841X
Gloucester City Council,23UE,Business Transformation & Tech,RT700,Computer Hardware Maintenance,5426,NBS Building Full Service,28/04/2016,416101,6525,NET,Riba Enterprises,09988U
Gloucester City Council,23UE,Business Transformation & Tech,RT700,Computer Software Maintenance,5427,service SEP16-MAR17,28/04/2016,417560,728.44,NET,Banking Automation Ltd,10352U
Gloucester City Council,23UE,Business Transformation & Tech,RT700,Computer Software Maintenance,5427,Sundry Debtors system MAY16-APR17,28/04/2016,417396,2860,NET,Ash Information Systems Ltd,54890V
Gloucester City Council,23UE,Business Transformation & Tech,RT700,Computer Software Maintenance,5427,Various Items,28/04/2016,415046,41547.53,NET,Civica Uk Ltd,10841X
Gloucester City Council,23UE,Business Transformation & Tech,RT700,Subscriptions,5600,Sub Monthly,28/04/2016,405880,126.66,NET,Civica Services Ltd,58099E
Gloucester City Council,23UE,Cemeteries,HC300,Clothing,5200,gloves,28/04/2016,417826,27.5,NET,Safpro Industrial Supply Co,39190W
Gloucester City Council,23UE,Cemeteries,HC300,Clothing,5200,poloshirt,28/04/2016,417860,21,NET,Safpro Industrial Supply Co,39190W
Gloucester City Council,23UE,Cemeteries,HC300,Clothing,5200,workwear,28/04/2016,417825,154.35,NET,Safpro Industrial Supply Co,39190W
Gloucester City Council,23UE,Cemeteries,HC300,Routine R And M - Vehicles,4011,stihl strimmer head,28/04/2016,417983,35.33,NET,Spaldings,48759Y
Gloucester City Council,23UE,Cems/Crems Admin,HC100,Office Equipment <5000,5010,carrier bags,28/04/2016,417956,35,NET,Teleshore (Uk) Ltd,56819G
Gloucester City Council,23UE,City Museum Catering,LM202,Catering Provisions -Food,5110,milk,28/04/2016,418039,7.14,NET,Total Produce Gloucester,12645E
Gloucester City Council,23UE,Civica Contract Revs & Bens,RT250,Fees For Services Received,5350,Revs & Bens Service May 2016,28/04/2016,417093,138271.3,NET,Civica Uk Ltd,10841X
Gloucester City Council,23UE,Countryside Unit,LP201,General Repair/Maint Buildings,3000,APR-OCT16 SANITARY WASTE,28/04/2016,416920,102.07,NET,Ocs Group Uk Limited T/A Cannon,06506A
Gloucester City Council,23UE,Development Management,PT200,Advertising And Publicity,5702,advert 21/4/16,28/04/2016,418004,146.08,NET,Local World Ltd,08556P
Gloucester City Council,23UE,Docks Complex - Services,RB100,Recycling,3631,Guildhall recycling,28/04/2016,417331,128.4,NET,Printwaste Recycling,57114W
Gloucester City Council,23UE,Financial Services,RT200,Vocational Training,2970,Audit & Assurance assessment,28/04/2016,417947,100,NET,Cipfa,02062F
Gloucester City Council,23UE,Folk Museum,LM210,Sewerage And Environ Charges,3402,FOLK MUSEUM JAN-MAR16,28/04/2016,416918,36.39,NET,Ocs Group Uk Limited T/A Cannon,06506A
Gloucester City Council,23UE,Guildhall Bar And Caf�,LA210,Catering Provisions -Food,5110,food,28/04/2016,417963,105.77,NET,Woodward Foodservice,10714F
Gloucester City Council,23UE,Guildhall Bar And Caf�,LA210,Catering Provisions -Liquor,5111,Gloucester Gold,28/04/2016,418007,114,NET,Gloucester Brewery,13373F
Gloucester City Council,23UE,REDACTED,REDACTED,REDACTED,REDACTED,REDACTED,28/04/2016,REDACTED,381.25,NET,REDACTED,REDACTED
Gloucester City Council,23UE,Hackney Carriages,HL100,Other Minor Supplies Services,5590,mogo taxi & private hire plates,28/04/2016,418012,2291.9,NET,Mogo Uk,56615B
Gloucester City Council,23UE,Townscape Heritage Initiative,LY145,Contract Payments,20,2016 day school People Power!,28/04/2016,418011,130,CAP,Ihbc Enterprises Ltd,58032P
Gloucester City Council,23UE,Tree Planting Grant Funded,LY150,Contract Payments,20,strimmer guard,28/04/2016,417855,71.95,CAP,Maxwell Amenity Ltd,00960F
Gloucester City Council,23UE,Aspire Admin Charges,LC105,Contracted Services,6970,April 2016 - credited on 00001911,29/04/2016,417272,54792.25,NET,Aspire Sports & Cultural Trust,08135V
Gloucester City Council,23UE,Asset Management,RS300,Vocational Training,2970,commercial property law delegates,29/04/2016,417858,238,NET,Professional Conferences,56296V
Gloucester City Council,23UE,Cctv Revenue Budget,FP501,Security Equipment Serv/Repair,3038,CCTV supplies APR15-MAR16,29/04/2016,417972,5472.86,NET,Npower Ltd,02663W
Gloucester City Council,23UE,Cemeteries,HC300,Clothing,5200,safety shoes,29/04/2016,417955,59.62,NET,Safpro Industrial Supply Co,39190W
Gloucester City Council,23UE,Cemeteries,HC300,Clothing,5200,work clothes,29/04/2016,417824,72.11,NET,Safpro Industrial Supply Co,39190W
Gloucester City Council,23UE,Cemeteries,HC300,Clothing,5200,work clothes,29/04/2016,417828,112.94,NET,Safpro Industrial Supply Co,39190W
Gloucester City Council,23UE,Civica Admin Charges,RT105,Postages,5400,acct 0870585007 APR16,29/04/2016,417974,1281.88,NET,Royal Mail S.Wales & South West,35830S
Gloucester City Council,23UE,Contact Centre,RB300,Postages,5400,acct 0252446000 APR16,29/04/2016,417973,1281.52,NET,Royal Mail S.Wales & South West,35830S
Gloucester City Council,23UE,Countryside Unit,LP201,Contract Cleaning,3620,ranger centre cleaning,29/04/2016,417952,130,NET,Cv Fisher Cleaning Services,14907C
Gloucester City Council,23UE,Disabled Facilities Grants,CY013,Disabled Facility Grants,74,mdf5062 interim fee 2,29/04/2016,418116,12910,CAP,Mears Home Improvement Ltd,00096G
Gloucester City Council,23UE,Disabled Facilities Grants,CY013,Disabled Facility Grants,74,mdf5186 final fee,29/04/2016,418115,1280.77,CAP,Tpg Disableaids,51324R
Gloucester City Council,23UE,Docks Complex - Services,RB100,Hire Of Equipment,5020,North Warehouse sanipods MAY-AUG16,29/04/2016,417592,422.24,NET,Wessex Products (Leasing) Ltd,03684C
Gloucester City Council,23UE,Docks Complex - Services,RB100,Operational Equipment <5000,5012,North Quay lifebuoy checks,29/04/2016,417861,120,NET,Nsgl Ltd,15246Y
Gloucester City Council,23UE,Employers Pension Contribs,ZR355,Pension Contribs Incl Backf,2901,APRIL 2016 PENSION DEFICIT,29/04/2016,418224,238916.67,NET,Gloucestershire County Council,10614L
Gloucester City Council,23UE,General Drainage Works,PY241,Contract Payments,20,Porchester Road tree works,29/04/2016,417893,1330,CAP,Evolution Trees Ltd,16441K
Gloucester City Council,23UE,Grants To Voluntary Sector,FG100,Members Allocation Fund,7100F,members fund grant,29/04/2016,418125,1000,NET,6th Gloucester Guides,13261U
Gloucester City Council,23UE,Homelessness,CH120,Board And Lodging,5515,various tenants,29/04/2016,418126,1704.07,NET,Carbrey Housing Ltd,11098G
Gloucester City Council,23UE,Homelessness,CH120,Board And Lodging,5515,various tenants,29/04/2016,418127,1758.25,NET,Kalmwood Ltd,08568G
Gloucester City Council,23UE,Homelessness,CH120,Board And Lodging,5515,various tenants,29/04/2016,418130,3097.72,NET,Dorchester Guest House,12298D
Gloucester City Council,23UE,Homelessness,CH120,Board And Lodging,5515,various tenants,29/04/2016,418131,6753.96,NET,REDACTED,REDACTED
Gloucester City Council,23UE,Homelessness,CH120,Board And Lodging,5515,various tenants,29/04/2016,418132,1693.2,NET,James Legge Property (Ltd),07844R
Gloucester City Council,23UE,REDACTED,REDACTED,REDACTED,REDACTED,REDACTED,29/04/2016,REDACTED,266.81,NET,REDACTED,REDACTED
Gloucester City Council,23UE,REDACTED,REDACTED,REDACTED,REDACTED,REDACTED,29/04/2016,REDACTED,4494.14,NET,REDACTED,REDACTED
Gloucester City Council,23UE,REDACTED,REDACTED,REDACTED,REDACTED,REDACTED,29/04/2016,REDACTED,2187.9,NET,REDACTED,REDACTED
Gloucester City Council,23UE,Homelessness Prevention,CH122,Fees For Services Received,5350,Medical Report,29/04/2016,416572,20.5,NET,Gloucester Health Access Centre,11611H
Gloucester City Council,23UE,Investment Property,RB500,Rents,3200,Glenville Pde toilets rent,29/04/2016,418001,18,NET,Martin Slowe Chartered Surveyors,51573R
Gloucester City Council,23UE,Planning Policy & Heritage,PT300,Basic Pay - Temporary Staff,2751,temporary staff w/e 10/4/16,29/04/2016,417834,2404.59,NET,The Oyster Partnership Limited,14900T
Gloucester City Council,23UE,Tic Rovercard Sales,LT101,Materials For Sale,5080,tickets sold on commission MAR16,29/04/2016,417880,2302.7,NET,Stagecoach Services Ltd,56554W
Gloucester City Council,23UE,Tic Rovercard Sales,LT101,Sale Of Goods And Services,9230,tickets sold on commission MAR16,29/04/2016,417880,-191.89,NET,Stagecoach Services Ltd,56554W
Gloucester City Council,23UE,REDACTED,REDACTED,REDACTED,REDACTED,REDACTED,29/04/2016,REDACTED,58,NET,REDACTED,REDACTED
Gloucester City Council,23UE,REDACTED,REDACTED,REDACTED,REDACTED,REDACTED,29/04/2016,REDACTED,-0.45,NET,REDACTED,REDACTED
Gloucester City Council,23UE,REDACTED,REDACTED,REDACTED,REDACTED,REDACTED,29/04/2016,REDACTED,-4.83,NET,REDACTED,REDACTED
Gloucester City Council,23UE,Townscape Heritage Initiative,LY145,Contract Payments,20,3rd installment of thi grant,29/04/2016,418136,13881,CAP,Chobe Holdings,16418E
Gloucester City Council,23UE,Vehicles,RS140,Fuel,4012,vehicle fuel,29/04/2016,417820,72.65,NET,Allstar Business Solutions Ltd (Arval),06594A
Gloucester City Council,23UE,Tic Stamp Sales,LT102,Postages,5400,International postcard stamp,03/05/2016,417852,180,NET,Universal Mail United Kingdom Ltd,14283Y
Gloucester City Council,23UE,REDACTED,REDACTED,REDACTED,REDACTED,REDACTED,03/05/2016,REDACTED,30,NET,REDACTED,REDACTED
Gloucester City Council,23UE,Development Management,PT200,Charges For Services,9300,RE OVERPAYMENT 16/00308/ADV,,416968,275,NET,Canal And River Trust,16610L
Gloucester City Council,23UE,Financial Services,RT200,Fees For Services Received,5350,print charges 18FEB16,,415413,3.5,NET,Regus,13861L
Gloucester City Council,23UE,Financial Services,RT200,Fees For Services Received,5350,Various Clothing,,415948,480.92,NET,REDACTED,REDACTED
Gloucester City Council,23UE,Off Street Car Parks,PP110,Buildings Insurance,3800,Insurance 2016,,414516,19.02,NET,Workman Llp,11021M
Gloucester City Council,23UE,Public Conveniences (Client),HI400,Contracted Services,6970,Toilet Scheme April 2016,,417247,300,NET,The Cross Keys,11165K
Gloucester City Council,23UE,Tourism Marketing,LT100,Vocational Training,2970,15/3/16 Welcoming overseas visitors,,416441,30,NET,Purple Cloud Consultancy,12797D
Gloucester City Council,23UE,Tourism Marketing,LT100,Vocational Training,2970,3/3/16 welcoming overseas visitors,,416440,45,NET,Purple Cloud Consultancy,12797D
,,,,,,,,Sum:,17052382.62,,,
